{"text_format":"1","workbook":"xlsx","n_sheets":10,"sheets":["žačky nejmladší ","žáci nejmladší","žačky mladší","žačky ","žáci ","juniorky","1","2","3","4"],"not_rendered":{"charts":0,"images":0,"macros":1,"external_links":0,"defined_names":10,"comments":0,"pivot_tables":0},"unopened":[],"bounds":{"document_bytes":16777216,"sheet_cells":100000,"rows_first":2000,"rows_last":500,"rows_between":2000,"halvings":0,"cell_chars":16384,"cell_head_chars":4096},"cells_cut":0,"cells_raw":0,"read":"whole","date_system":"1900"}

{"sheet":"žačky nejmladší ","index":0,"n_rows":70,"n_cols":29,"rows_kept":70,"cut":false,"hidden":false,"merged":[[2,1,2,2]]}
["18+5",null,"Žačky nejmladší",null,"Memorial","VC ","Chomutovská","Novoměstská","Vánoční","Slánská","VC města","Lounská","Křišťálová","Hronovská","Ledečská","Kralupská","Malá cena","Žebrácká","Lužiské"]
[null,"Počet postupujících",24,{"$f":"LARGE(D4:D70,C2)","v":20},"K.Diviše","Podřipska","brusle","bruslička","závod","brusle","Mělník","bruslička","brusle Děčín","bruslička","pirueta","klička","Nového Města","bruslička","ostří"]
[null,"Seřazení od nejlepšího: CTRL+S",null,"Ʃ best 3"]
[1,"Kysilková Tereza","PKK Roudnice",{"$f":"SUM(LARGE(E4:AC4,1)+LARGE(E4:AC4,2)+LARGE(E4:AC4,3))","v":77},11,24,18,null,null,25,null,null,null,null,null,28,null,null,null,null,null,null,null,null,null,null,0,0,0]
[2,"Bártová Veronika","KK Slaný",{"$f":"SUM(LARGE(E5:AC5,1)+LARGE(E5:AC5,2)+LARGE(E5:AC5,3))","v":60},3,null,10,null,null,22,14,null,null,null,null,19,null,19,null,null,null,null,null,null,null,null,0,0,0]
[3,"Henklová Sofie","KK Slaný",{"$f":"SUM(LARGE(E6:AC6,1)+LARGE(E6:AC6,2)+LARGE(E6:AC6,3))","v":58},null,18,null,null,null,15,11,8,null,null,null,25,null,null,null,null,null,null,null,null,null,null,0,0,0]
[4,"Iljina Viktoria","KK St.Praha",{"$f":"SUM(LARGE(E7:AC7,1)+LARGE(E7:AC7,2)+LARGE(E7:AC7,3))","v":55},null,27,null,null,null,28,null,null,null,null,null,null,null,null,null,null,null,null,null,null,null,null,0,0,0]
[5,"Kratochvílová Leontýna","KK Plzeň",{"$f":"SUM(LARGE(E8:AC8,1)+LARGE(E8:AC8,2)+LARGE(E8:AC8,3))","v":53},null,null,15,null,null,20,17,null,null,null,null,null,null,16,null,null,null,null,null,null,null,null,0,0,0]
[6,"Plíšková Kateřina","HC Louny",{"$f":"SUM(LARGE(E9:AC9,1)+LARGE(E9:AC9,2)+LARGE(E9:AC9,3))","v":51},null,15,null,null,null,18,null,14,null,null,null,18,null,null,null,null,null,null,null,null,null,null,0,0,0]
[7,"Nechanická Nela","KK Slaný",{"$f":"SUM(LARGE(E10:AC10,1)+LARGE(E10:AC10,2)+LARGE(E10:AC10,3))","v":50},null,19,12,null,null,19,9,null,11,null,null,null,null,null,null,null,null,null,null,null,null,null,0,0,0]
[8,"Pisková Hana","KK Slaný",{"$f":"SUM(LARGE(E11:AC11,1)+LARGE(E11:AC11,2)+LARGE(E11:AC11,3))","v":49},null,16,null,null,null,16,8,17,null,null,null,16,null,null,null,null,null,null,null,null,null,null,0,0,0]
[9,"Malečková Amálie","PKK Roudnice",{"$f":"SUM(LARGE(E12:AC12,1)+LARGE(E12:AC12,2)+LARGE(E12:AC12,3))","v":41},null,13,5,null,null,null,null,null,null,null,null,23,null,null,null,null,null,null,null,null,null,null,0,0,0]
[10,"Liemannová Dora","TJ Kralupy",{"$f":"SUM(LARGE(E13:AC13,1)+LARGE(E13:AC13,2)+LARGE(E13:AC13,3))","v":39},null,2,null,null,null,13,null,null,null,null,14,12,null,null,null,null,null,null,null,null,null,null,0,0,0]
[11,"Zelenková Tereza","Sp.Žebrák",{"$f":"SUM(LARGE(E14:AC14,1)+LARGE(E14:AC14,2)+LARGE(E14:AC14,3))","v":36},null,null,6,null,null,10,4,null,null,null,null,15,null,11,null,null,null,null,null,null,null,null,0,0,0]
[12,"Rácová Lenka","HC Louny",{"$f":"SUM(LARGE(E15:AC15,1)+LARGE(E15:AC15,2)+LARGE(E15:AC15,3))","v":33},null,9,null,null,null,null,null,11,null,null,null,13,null,null,null,null,null,null,null,null,null,null,0,0,0]
[13,"Curran Romy","KK St.Praha",{"$f":"SUM(LARGE(E16:AC16,1)+LARGE(E16:AC16,2)+LARGE(E16:AC16,3))","v":31},null,17,null,null,null,null,null,null,null,null,null,14,null,null,null,null,null,null,null,null,null,null,0,0,0]
[14,"Vokounová Kristýna","KK Poděbrady",{"$f":"SUM(LARGE(E17:AC17,1)+LARGE(E17:AC17,2)+LARGE(E17:AC17,3))","v":30},8,null,null,10,12,null,null,null,null,null,6,null,5,null,null,null,null,null,null,null,null,null,0,0,0]
[14,"Mego Sophie","Sport Most",{"$f":"SUM(LARGE(E18:AC18,1)+LARGE(E18:AC18,2)+LARGE(E18:AC18,3))","v":30},null,10,8,null,null,12,6,null,null,null,null,null,null,null,null,null,null,null,null,null,null,null,0,0,0]
[16,"Wachtelová Viktorie","Sport Most",{"$f":"SUM(LARGE(E19:AC19,1)+LARGE(E19:AC19,2)+LARGE(E19:AC19,3))","v":28},null,5,9,null,null,14,null,null,null,null,null,null,null,null,null,null,null,null,null,null,null,null,0,0,0]
[16,"Rousková Alexandra","KK Stadion Praha",{"$f":"SUM(LARGE(E20:AC20,1)+LARGE(E20:AC20,2)+LARGE(E20:AC20,3))","v":28},null,null,null,null,null,null,null,null,null,null,null,20,null,8,null,null,null,null,null,null,null,null,0,0,0]
[18,"Janáčková Sára","KK Poděbrady",{"$f":"SUM(LARGE(E21:AC21,1)+LARGE(E21:AC21,2)+LARGE(E21:AC21,3))","v":26},5,null,null,7,9,null,null,null,null,null,5,null,10,null,null,null,null,null,null,null,null,null,0,0,0]
[19,"Nováková Tereza","Koras Chrudim",{"$f":"SUM(LARGE(E22:AC22,1)+LARGE(E22:AC22,2)+LARGE(E22:AC22,3))","v":24},null,null,null,null,null,11,null,null,null,null,null,null,13,null,null,null,null,null,null,null,null,null,0,0,0]
[19,"Filipová Viktorie","Sp.Žebrák",{"$f":"SUM(LARGE(E23:AC23,1)+LARGE(E23:AC23,2)+LARGE(E23:AC23,3))","v":24},null,null,4,null,null,9,3,6,null,null,null,3,null,9,null,null,null,null,null,null,null,null,0,0,0]
[19,"Müllerová Sophia","KK St.Praha",{"$f":"SUM(LARGE(E24:AC24,1)+LARGE(E24:AC24,2)+LARGE(E24:AC24,3))","v":24},null,11,null,null,null,null,null,null,null,null,null,null,null,13,null,null,null,null,null,null,null,null,0,0,0]
[22,"Mašková Tereza","KK Rokycany",{"$f":"SUM(LARGE(E25:AC25,1)+LARGE(E25:AC25,2)+LARGE(E25:AC25,3))","v":23},null,null,null,null,null,5,7,9,null,null,null,7,null,4,null,null,null,null,null,null,null,null,0,0,0]
[23,"Bulířová Dominika","PKK Roudnice",{"$f":"SUM(LARGE(E26:AC26,1)+LARGE(E26:AC26,2)+LARGE(E26:AC26,3))","v":21},null,21,null,null,null,null,null,null,null,null,null,null,null,null,null,null,null,null,null,null,null,null,0,0,0]
[24,"Veselá Sofie","BK České Budějovice",{"$f":"SUM(LARGE(E27:AC27,1)+LARGE(E27:AC27,2)+LARGE(E27:AC27,3))","v":20},null,null,null,null,null,null,null,null,null,null,null,null,null,10,10,null,null,null,null,null,null,null,0,0,0]
[25,"Kopicová Sofie","HC Ledeč n.S.",{"$f":"SUM(LARGE(E28:AC28,1)+LARGE(E28:AC28,2)+LARGE(E28:AC28,3))","v":18},null,null,null,null,null,null,null,null,null,null,11,null,null,null,7,null,null,null,null,null,null,null,0,0,0]
[26,"Pánková Lucie ","HC Rakovník",{"$f":"SUM(LARGE(E29:AC29,1)+LARGE(E29:AC29,2)+LARGE(E29:AC29,3))","v":17},null,null,null,null,null,17,null,null,null,null,null,null,null,null,null,null,null,null,null,null,null,null,0,0,0]
[26,"Hudoková Kateřina","KK Dvůr Králové",{"$f":"SUM(LARGE(E30:AC30,1)+LARGE(E30:AC30,2)+LARGE(E30:AC30,3))","v":17},null,null,null,null,null,7,null,null,null,10,null,null,null,null,null,null,null,null,null,null,null,null,0,0,0]
[26,"Kratochvílová Mariana","KK Stadion Praha",{"$f":"SUM(LARGE(E31:AC31,1)+LARGE(E31:AC31,2)+LARGE(E31:AC31,3))","v":17},null,null,null,null,null,null,null,null,null,null,null,17,null,null,null,null,null,null,null,null,null,null,0,0,0]
[29,"Trojáková Pavlína","KK Slaný",{"$f":"SUM(LARGE(E32:AC32,1)+LARGE(E32:AC32,2)+LARGE(E32:AC32,3))","v":16},null,null,3,null,null,6,5,3,null,null,null,5,null,null,null,null,null,null,null,null,null,null,0,0,0]
[29,"Vápeníková Sofie","KK Čes.Třebová",{"$f":"SUM(LARGE(E33:AC33,1)+LARGE(E33:AC33,2)+LARGE(E33:AC33,3))","v":16},null,null,null,4,null,8,null,null,null,2,null,null,4,null,null,null,null,null,null,null,null,null,0,0,0]
[29,"Váchalová Markéta","SK Jiskra Domažlice",{"$f":"SUM(LARGE(E34:AC34,1)+LARGE(E34:AC34,2)+LARGE(E34:AC34,3))","v":16},null,null,null,null,null,null,null,7,3,null,null,null,null,6,null,null,null,null,null,null,null,null,0,0,0]
[32,"Vindeman Ema","KK St.Praha",{"$f":"SUM(LARGE(E35:AC35,1)+LARGE(E35:AC35,2)+LARGE(E35:AC35,3))","v":14},null,14,null,null,null,null,null,null,null,null,null,null,null,null,null,null,null,null,null,null,null,null,0,0,0]
[32,"Krejčí Linda","KK Soběslav",{"$f":"SUM(LARGE(E36:AC36,1)+LARGE(E36:AC36,2)+LARGE(E36:AC36,3))","v":14},null,6,2,null,null,4,null,null,null,null,4,null,null,null,null,null,null,null,null,null,null,null,0,0,0]
[34,"Řehounková Beata","TJ Kralupy",{"$f":"SUM(LARGE(E37:AC37,1)+LARGE(E37:AC37,2)+LARGE(E37:AC37,3))","v":13},null,null,null,null,null,null,null,null,null,null,null,6,null,7,null,null,null,null,null,null,null,null,0,0,0]
[35,"Hlaváčková Anna","PKK Roudnice",{"$f":"SUM(LARGE(E38:AC38,1)+LARGE(E38:AC38,2)+LARGE(E38:AC38,3))","v":12},null,12,null,null,null,null,null,null,null,null,null,null,null,null,null,null,null,null,null,null,null,null,0,0,0]
[35,"Herynková Nela","KK Soběslav",{"$f":"SUM(LARGE(E39:AC39,1)+LARGE(E39:AC39,2)+LARGE(E39:AC39,3))","v":12},null,4,null,null,null,3,null,5,null,null,null,null,null,null,null,null,null,null,null,null,null,null,0,0,0]
[37,"Chudá Kristýna","KK Čes.Třebová",{"$f":"SUM(LARGE(E40:AC40,1)+LARGE(E40:AC40,2)+LARGE(E40:AC40,3))","v":11},2,null,null,2,null,null,null,null,null,7,null,null,2,null,null,null,null,null,null,null,null,null,0,0,0]
[37,"Dovolilová Alžběta","BK Variace Liberec",{"$f":"SUM(LARGE(E41:AC41,1)+LARGE(E41:AC41,2)+LARGE(E41:AC41,3))","v":11},null,null,null,null,null,null,null,null,null,null,null,11,null,null,null,null,null,null,null,null,null,null,0,0,0]
[37,"Rejtharová Nela","TJ Spartak N.M.n.M.",{"$f":"SUM(LARGE(E42:AC42,1)+LARGE(E42:AC42,2)+LARGE(E42:AC42,3))","v":11},null,null,null,null,null,null,null,null,null,4,null,null,7,null,null,null,null,null,null,null,null,null,0,0,0]
[40,"Malevičová Tereza","KK St.Praha",{"$f":"SUM(LARGE(E43:AC43,1)+LARGE(E43:AC43,2)+LARGE(E43:AC43,3))","v":10},null,8,null,null,null,null,null,null,null,null,2,null,null,null,null,null,null,null,null,null,null,null,0,0,0]
[40,"Charvátová Agáta","SKK Bílina",{"$f":"SUM(LARGE(E44:AC44,1)+LARGE(E44:AC44,2)+LARGE(E44:AC44,3))","v":10},null,null,null,null,null,null,null,null,null,null,null,10,null,null,null,null,null,null,null,null,null,null,0,0,0]
[40,"Horáková Kateřina","HCPZ Kraso Klad",{"$f":"SUM(LARGE(E45:AC45,1)+LARGE(E45:AC45,2)+LARGE(E45:AC45,3))","v":10},null,null,null,null,null,null,null,null,null,null,null,9,null,1,null,null,null,null,null,null,null,null,0,0,0]
[43,"Karbanová Kateřina","KK Dvůr Králové",{"$f":"SUM(LARGE(E46:AC46,1)+LARGE(E46:AC46,2)+LARGE(E46:AC46,3))","v":9},1,null,null,null,1,null,null,null,null,null,null,null,3,5,null,null,null,null,null,null,null,null,0,0,0]
[44,"Raunerová Běla","ÚKK Ústí n.L.",{"$f":"SUM(LARGE(E47:AC47,1)+LARGE(E47:AC47,2)+LARGE(E47:AC47,3))","v":8},null,null,null,null,null,null,null,null,8,null,null,null,null,null,null,null,null,null,null,null,null,null,0,0,0]
[44,"Svatková Nikola","HC Ledeč n.S.",{"$f":"SUM(LARGE(E48:AC48,1)+LARGE(E48:AC48,2)+LARGE(E48:AC48,3))","v":8},null,null,null,null,null,null,null,null,null,null,8,null,null,null,null,null,null,null,null,null,null,null,0,0,0]
[44,"Curran Kassia","KK Stadion Praha",{"$f":"SUM(LARGE(E49:AC49,1)+LARGE(E49:AC49,2)+LARGE(E49:AC49,3))","v":8},null,null,null,null,null,null,null,null,null,null,null,8,null,null,null,null,null,null,null,null,null,null,0,0,0]
[47,"Samková Pavla","Kraso Č.Lípa",{"$f":"SUM(LARGE(E50:AC50,1)+LARGE(E50:AC50,2)+LARGE(E50:AC50,3))","v":7},null,7,null,null,null,null,null,null,null,null,null,null,null,null,null,null,null,null,null,null,null,null,0,0,0]
[47,"Hüblová Valerie","Sport Most",{"$f":"SUM(LARGE(E51:AC51,1)+LARGE(E51:AC51,2)+LARGE(E51:AC51,3))","v":7},null,null,7,null,null,null,null,null,null,null,null,null,null,null,null,null,null,null,null,null,null,null,0,0,0]
[49,"Šmídová Barbora","TJ AŠ Ml.Boleslav",{"$f":"SUM(LARGE(E52:AC52,1)+LARGE(E52:AC52,2)+LARGE(E52:AC52,3))","v":6},null,null,null,null,6,null,null,null,null,null,null,null,null,null,null,null,null,null,null,null,null,null,0,0,0]
[49,"Havlíčková Liliana","BK Říčany",{"$f":"SUM(LARGE(E53:AC53,1)+LARGE(E53:AC53,2)+LARGE(E53:AC53,3))","v":6},null,null,null,null,2,null,2,null,2,null,1,1,null,null,null,null,null,null,null,null,null,null,0,0,0]
[51,"Krsková Tereza","ÚKK Ústí n.L.",{"$f":"SUM(LARGE(E54:AC54,1)+LARGE(E54:AC54,2)+LARGE(E54:AC54,3))","v":5},null,null,null,null,null,null,null,null,5,null,null,null,null,null,null,null,null,null,null,null,null,null,0,0,0]
[52,"Volfová Andrea","TJ AŠ Ml.Boleslav",{"$f":"SUM(LARGE(E55:AC55,1)+LARGE(E55:AC55,2)+LARGE(E55:AC55,3))","v":4},null,null,null,null,4,null,null,null,null,null,null,null,null,null,null,null,null,null,null,null,null,null,0,0,0]
[52,"Hájková Johana","HC Louny",{"$f":"SUM(LARGE(E56:AC56,1)+LARGE(E56:AC56,2)+LARGE(E56:AC56,3))","v":4},null,null,null,null,null,null,null,4,null,null,null,null,null,null,null,null,null,null,null,null,null,null,0,0,0]
[52,"Růžičková Viktorie ","SKK Děčín",{"$f":"SUM(LARGE(E57:AC57,1)+LARGE(E57:AC57,2)+LARGE(E57:AC57,3))","v":4},null,null,null,null,null,null,1,null,1,null,null,2,null,null,null,null,null,null,null,null,null,null,0,0,0]
[52,"Částková Terezie","KK Nejdek ",{"$f":"SUM(LARGE(E58:AC58,1)+LARGE(E58:AC58,2)+LARGE(E58:AC58,3))","v":4},null,null,null,null,null,null,null,null,null,null,null,4,null,null,null,null,null,null,null,null,null,null,0,0,0]
[52,"Mullender Sofia","KK Soběslav",{"$f":"SUM(LARGE(E59:AC59,1)+LARGE(E59:AC59,2)+LARGE(E59:AC59,3))","v":4},null,null,null,null,null,null,null,2,null,null,null,null,null,null,2,null,null,null,null,null,null,null,0,0,0]
[52,"Brůhová Aneta","TJ Loko Veselí",{"$f":"SUM(LARGE(E60:AC60,1)+LARGE(E60:AC60,2)+LARGE(E60:AC60,3))","v":4},null,null,null,null,null,null,null,null,null,null,null,null,null,null,4,null,null,null,null,null,null,null,0,0,0]
[58,"Domastová Barbora","Kraso Č.Lípa",{"$f":"SUM(LARGE(E61:AC61,1)+LARGE(E61:AC61,2)+LARGE(E61:AC61,3))","v":3},null,3,null,null,null,null,null,null,null,null,null,null,null,null,null,null,null,null,null,null,null,null,0,0,0]
[58,"Dvouletá Julie","TJ AŠ Ml.Boleslav",{"$f":"SUM(LARGE(E62:AC62,1)+LARGE(E62:AC62,2)+LARGE(E62:AC62,3))","v":3},null,null,null,null,3,null,null,null,null,null,null,null,null,null,null,null,null,null,null,null,null,null,0,0,0]
[58,"Salvová Natálie","SKK Cheb",{"$f":"SUM(LARGE(E63:AC63,1)+LARGE(E63:AC63,2)+LARGE(E63:AC63,3))","v":3},null,null,1,null,null,2,null,null,null,null,null,null,null,null,null,null,null,null,null,null,null,null,0,0,0]
[58,"Poulová Simona","KK Čes.Třebová",{"$f":"SUM(LARGE(E64:AC64,1)+LARGE(E64:AC64,2)+LARGE(E64:AC64,3))","v":3},null,null,null,1,null,1,null,null,null,1,null,null,1,null,null,null,null,null,null,null,null,null,0,0,0]
[58,"Nývltová Tereza ","KK Soběslav",{"$f":"SUM(LARGE(E65:AC65,1)+LARGE(E65:AC65,2)+LARGE(E65:AC65,3))","v":3},null,null,null,null,null,null,null,null,null,null,3,null,null,null,null,null,null,null,null,null,null,null,0,0,0]
[58,"Stets Yeva","KK Dvůr Králové",{"$f":"SUM(LARGE(E66:AC66,1)+LARGE(E66:AC66,2)+LARGE(E66:AC66,3))","v":3},null,null,null,null,null,null,null,null,null,null,null,null,null,3,null,null,null,null,null,null,null,null,0,0,0]
[64,"Štěpánková Amálie","KK Soběslav",{"$f":"SUM(LARGE(E67:AC67,1)+LARGE(E67:AC67,2)+LARGE(E67:AC67,3))","v":2},null,1,null,null,null,null,null,1,null,null,null,null,null,null,null,null,null,null,null,null,null,null,0,0,0]
[64,"Černá Elinor","TJ Kraso Beroun",{"$f":"SUM(LARGE(E68:AC68,1)+LARGE(E68:AC68,2)+LARGE(E68:AC68,3))","v":2},null,null,null,null,null,null,null,null,null,null,null,null,null,2,null,null,null,null,null,null,null,null,0,0,0]
[66,"Zimová Izabela","KK Soběslav",{"$f":"SUM(LARGE(E69:AC69,1)+LARGE(E69:AC69,2)+LARGE(E69:AC69,3))","v":1},null,null,null,null,null,null,null,null,null,null,null,null,null,null,1,null,null,null,null,null,null,null,0,0,0]
[null,null,null,{"$f":"SUM(LARGE(E70:AC70,1)+LARGE(E70:AC70,2)+LARGE(E70:AC70,3))","v":0},null,null,null,null,null,null,null,null,null,null,null,null,null,null,null,null,null,null,null,null,null,null,0,0,0]

{"sheet":"žáci nejmladší","index":1,"n_rows":108,"n_cols":32,"rows_kept":108,"cut":false,"hidden":false,"merged":[]}
["8+0",null,"Žáci nejmladší",null,"VC","Slánská","Lounská","Kralupská"]
[null,"Počet postupujících",24,{"$f":"LARGE(D4:D108,C2)","v":0},"Podřipska","brusle","bruslička","klička"]
[null,null," ","Ʃ best 3"]
[1,"Malíček Tomáš","HC Litvínov",{"$f":"SUM(LARGE(E4:AF4,1)+LARGE(E4:AF4,2)+LARGE(E4:AF4,3))","v":17},5,1,6,6,null,null,null,null,null,null,null,null,null,null,null,null,null,null,null,null,null,null,null,null,null,0,0,0]
[1,"Pilous David","KK St.Praha",12,6,6,null,null,null,null,null,null,null,null,null,null,null,null,null,null,null,null,null,null,null,null,null,null,null,0,0,0]
[3,"Kára Benjamin","HC Rakovník",9,null,9,null,null,null,null,null,null,null,null,null,null,null,null,null,null,null,null,null,null,null,null,null,null,null,0,0,0]
[4,"Kujal Filip","BK Příbram",3,null,3,null,null,null,null,null,null,null,null,null,null,null,null,null,null,null,null,null,null,null,null,null,null,null,0,0,0]
[null,null,null,0,null,null,null,null,null,null,null,null,null,null,null,null,null,null,null,null,null,null,null,null,null,null,null,null,null,0,0,0]
[null,null,null,0,null,null,null,null,null,null,null,null,null,null,null,null,null,null,null,null,null,null,null,null,null,null,null,null,null,0,0,0]
[null,null,null,0,null,null,null,null,null,null,null,null,null,null,null,null,null,null,null,null,null,null,null,null,null,null,null,null,null,0,0,0]
[null,null,null,0,null,null,null,null,null,null,null,null,null,null,null,null,null,null,null,null,null,null,null,null,null,null,null,null,null,0,0,0]
[null,null,null,0,null,null,null,null,null,null,null,null,null,null,null,null,null,null,null,null,null,null,null,null,null,null,null,null,null,0,0,0]
[null,null,null,0,null,null,null,null,null,null,null,null,null,null,null,null,null,null,null,null,null,null,null,null,null,null,null,null,null,0,0,0]
[null,null,null,0,null,null,null,null,null,null,null,null,null,null,null,null,null,null,null,null,null,null,null,null,null,null,null,null,null,0,0,0]
[null,null,null,0,null,null,null,null,null,null,null,null,null,null,null,null,null,null,null,null,null,null,null,null,null,null,null,null,null,0,0,0]
[null,null,null,0,null,null,null,null,null,null,null,null,null,null,null,null,null,null,null,null,null,null,null,null,null,null,null,null,null,0,0,0]
[null,null,null,0,null,null,null,null,null,null,null,null,null,null,null,null,null,null,null,null,null,null,null,null,null,null,null,null,null,0,0,0]
[null,null,null,0,null,null,null,null,null,null,null,null,null,null,null,null,null,null,null,null,null,null,null,null,null,null,null,null,null,0,0,0]
[null,null,null,0,null,null,null,null,null,null,null,null,null,null,null,null,null,null,null,null,null,null,null,null,null,null,null,null,null,0,0,0]
[null,null,null,0,null,null,null,null,null,null,null,null,null,null,null,null,null,null,null,null,null,null,null,null,null,null,null,null,null,0,0,0]
[null,null,null,0,null,null,null,null,null,null,null,null,null,null,null,null,null,null,null,null,null,null,null,null,null,null,null,null,null,0,0,0]
[null,null,null,0,null,null,null,null,null,null,null,null,null,null,null,null,null,null,null,null,null,null,null,null,null,null,null,null,null,0,0,0]
[null,null,null,0,null,null,null,null,null,null,null,null,null,null,null,null,null,null,null,null,null,null,null,null,null,null,null,null,null,0,0,0]
[null,null,null,0,null,null,null,null,null,null,null,null,null,null,null,null,null,null,null,null,null,null,null,null,null,null,null,null,null,0,0,0]
[null,null,null,0,null,null,null,null,null,null,null,null,null,null,null,null,null,null,null,null,null,null,null,null,null,null,null,null,null,0,0,0]
[null,null,null,0,null,null,null,null,null,null,null,null,null,null,null,null,null,null,null,null,null,null,null,null,null,null,null,null,null,0,0,0]
[null,null,null,0,null,null,null,null,null,null,null,null,null,null,null,null,null,null,null,null,null,null,null,null,null,null,null,null,null,0,0,0]
[null,null,null,0,null,null,null,null,null,null,null,null,null,null,null,null,null,null,null,null,null,null,null,null,null,null,null,null,null,0,0,0]
[null,null,null,0,null,null,null,null,null,null,null,null,null,null,null,null,null,null,null,null,null,null,null,null,null,null,null,null,null,0,0,0]
[null,null,null,0,null,null,null,null,null,null,null,null,null,null,null,null,null,null,null,null,null,null,null,null,null,null,null,null,null,0,0,0]
[null,null,null,0,null,null,null,null,null,null,null,null,null,null,null,null,null,null,null,null,null,null,null,null,null,null,null,null,null,0,0,0]
[null,null,null,0,null,null,null,null,null,null,null,null,null,null,null,null,null,null,null,null,null,null,null,null,null,null,null,null,null,0,0,0]
[null,null,null,0,null,null,null,null,null,null,null,null,null,null,null,null,null,null,null,null,null,null,null,null,null,null,null,null,null,0,0,0]
[null,null,null,0,null,null,null,null,null,null,null,null,null,null,null,null,null,null,null,null,null,null,null,null,null,null,null,null,null,0,0,0]
[null,null,null,0,null,null,null,null,null,null,null,null,null,null,null,null,null,null,null,null,null,null,null,null,null,null,null,null,null,0,0,0]
[null,null,null,{"$f":"SUM(LARGE(E36:AF36,1)+LARGE(E36:AF36,2)+LARGE(E36:AF36,3))","v":0},null,null,null,null,null,null,null,null,null,null,null,null,null,null,null,null,null,null,null,null,null,null,null,null,null,0,0,0]
[null,null,null,0,null,null,null,null,null,null,null,null,null,null,null,null,null,null,null,null,null,null,null,null,null,null,null,null,null,0,0,0]
[null,null,null,0,null,null,null,null,null,null,null,null,null,null,null,null,null,null,null,null,null,null,null,null,null,null,null,null,null,0,0,0]
[null,null,null,0,null,null,null,null,null,null,null,null,null,null,null,null,null,null,null,null,null,null,null,null,null,null,null,null,null,0,0,0]
[null,null,null,0,null,null,null,null,null,null,null,null,null,null,null,null,null,null,null,null,null,null,null,null,null,null,null,null,null,0,0,0]
[null,null,null,0,null,null,null,null,null,null,null,null,null,null,null,null,null,null,null,null,null,null,null,null,null,null,null,null,null,0,0,0]
[null,null,null,0,null,null,null,null,null,null,null,null,null,null,null,null,null,null,null,null,null,null,null,null,null,null,null,null,null,0,0,0]
[null,null,null,0,null,null,null,null,null,null,null,null,null,null,null,null,null,null,null,null,null,null,null,null,null,null,null,null,null,0,0,0]
[null,null,null,0,null,null,null,null,null,null,null,null,null,null,null,null,null,null,null,null,null,null,null,null,null,null,null,null,null,0,0,0]
[null,null,null,0,null,null,null,null,null,null,null,null,null,null,null,null,null,null,null,null,null,null,null,null,null,null,null,null,null,0,0,0]
[null,null,null,0,null,null,null,null,null,null,null,null,null,null,null,null,null,null,null,null,null,null,null,null,null,null,null,null,null,0,0,0]
[null,null,null,0,null,null,null,null,null,null,null,null,null,null,null,null,null,null,null,null,null,null,null,null,null,null,null,null,null,0,0,0]
[null,null,null,0,null,null,null,null,null,null,null,null,null,null,null,null,null,null,null,null,null,null,null,null,null,null,null,null,null,0,0,0]
[null,null,null,0,null,null,null,null,null,null,null,null,null,null,null,null,null,null,null,null,null,null,null,null,null,null,null,null,null,0,0,0]
[null,null,null,0,null,null,null,null,null,null,null,null,null,null,null,null,null,null,null,null,null,null,null,null,null,null,null,null,null,0,0,0]
[null,null,null,0,null,null,null,null,null,null,null,null,null,null,null,null,null,null,null,null,null,null,null,null,null,null,null,null,null,0,0,0]
[null,null,null,0,null,null,null,null,null,null,null,null,null,null,null,null,null,null,null,null,null,null,null,null,null,null,null,null,null,0,0,0]
[null,null,null,0,null,null,null,null,null,null,null,null,null,null,null,null,null,null,null,null,null,null,null,null,null,null,null,null,null,0,0,0]
[null,null,null,0,null,null,null,null,null,null,null,null,null,null,null,null,null,null,null,null,null,null,null,null,null,null,null,null,null,0,0,0]
[null,null,null,0,null,null,null,null,null,null,null,null,null,null,null,null,null,null,null,null,null,null,null,null,null,null,null,null,null,0,0,0]
[null,null,null,0,null,null,null,null,null,null,null,null,null,null,null,null,null,null,null,null,null,null,null,null,null,null,null,null,null,0,0,0]
[null,null,null,0,null,null,null,null,null,null,null,null,null,null,null,null,null,null,null,null,null,null,null,null,null,null,null,null,null,0,0,0]
[null,null,null,0,null,null,null,null,null,null,null,null,null,null,null,null,null,null,null,null,null,null,null,null,null,null,null,null,null,0,0,0]
[null,null,null,0,null,null,null,null,null,null,null,null,null,null,null,null,null,null,null,null,null,null,null,null,null,null,null,null,null,0,0,0]
[null,null,null,0,null,null,null,null,null,null,null,null,null,null,null,null,null,null,null,null,null,null,null,null,null,null,null,null,null,0,0,0]
[null,null,null,0,null,null,null,null,null,null,null,null,null,null,null,null,null,null,null,null,null,null,null,null,null,null,null,null,null,0,0,0]
[null,null,null,0,null,null,null,null,null,null,null,null,null,null,null,null,null,null,null,null,null,null,null,null,null,null,null,null,null,0,0,0]
[null,null,null,0,null,null,null,null,null,null,null,null,null,null,null,null,null,null,null,null,null,null,null,null,null,null,null,null,null,0,0,0]
[null,null,null,0,null,null,null,null,null,null,null,null,null,null,null,null,null,null,null,null,null,null,null,null,null,null,null,null,null,0,0,0]
[null,null,null,0,null,null,null,null,null,null,null,null,null,null,null,null,null,null,null,null,null,null,null,null,null,null,null,null,null,0,0,0]
[null,null,null,0,null,null,null,null,null,null,null,null,null,null,null,null,null,null,null,null,null,null,null,null,null,null,null,null,null,0,0,0]
[null,null,null,0,null,null,null,null,null,null,null,null,null,null,null,null,null,null,null,null,null,null,null,null,null,null,null,null,null,0,0,0]
[null,null,null,{"$f":"SUM(LARGE(E68:AF68,1)+LARGE(E68:AF68,2)+LARGE(E68:AF68,3))","v":0},null,null,null,null,null,null,null,null,null,null,null,null,null,null,null,null,null,null,null,null,null,null,null,null,null,0,0,0]
[null,null,null,0,null,null,null,null,null,null,null,null,null,null,null,null,null,null,null,null,null,null,null,null,null,null,null,null,null,0,0,0]
[null,null,null,0,null,null,null,null,null,null,null,null,null,null,null,null,null,null,null,null,null,null,null,null,null,null,null,null,null,0,0,0]
[null,null,null,0,null,null,null,null,null,null,null,null,null,null,null,null,null,null,null,null,null,null,null,null,null,null,null,null,null,0,0,0]
[null,null,null,0,null,null,null,null,null,null,null,null,null,null,null,null,null,null,null,null,null,null,null,null,null,null,null,null,null,0,0,0]
[null,null,null,0,null,null,null,null,null,null,null,null,null,null,null,null,null,null,null,null,null,null,null,null,null,null,null,null,null,0,0,0]
[null,null,null,0,null,null,null,null,null,null,null,null,null,null,null,null,null,null,null,null,null,null,null,null,null,null,null,null,null,0,0,0]
[null,null,null,0,null,null,null,null,null,null,null,null,null,null,null,null,null,null,null,null,null,null,null,null,null,null,null,null,null,0,0,0]
[null,null,null,0,null,null,null,null,null,null,null,null,null,null,null,null,null,null,null,null,null,null,null,null,null,null,null,null,null,0,0,0]
[null,null,null,0,null,null,null,null,null,null,null,null,null,null,null,null,null,null,null,null,null,null,null,null,null,null,null,null,null,0,0,0]
[null,null,null,0,null,null,null,null,null,null,null,null,null,null,null,null,null,null,null,null,null,null,null,null,null,null,null,null,null,0,0,0]
[null,null,null,0,null,null,null,null,null,null,null,null,null,null,null,null,null,null,null,null,null,null,null,null,null,null,null,null,null,0,0,0]
[null,null,null,0,null,null,null,null,null,null,null,null,null,null,null,null,null,null,null,null,null,null,null,null,null,null,null,null,null,0,0,0]
[null,null,null,0,null,null,null,null,null,null,null,null,null,null,null,null,null,null,null,null,null,null,null,null,null,null,null,null,null,0,0,0]
[null,null,null,0,null,null,null,null,null,null,null,null,null,null,null,null,null,null,null,null,null,null,null,null,null,null,null,null,null,0,0,0]
[null,null,null,0,null,null,null,null,null,null,null,null,null,null,null,null,null,null,null,null,null,null,null,null,null,null,null,null,null,0,0,0]
[null,null,null,0,null,null,null,null,null,null,null,null,null,null,null,null,null,null,null,null,null,null,null,null,null,null,null,null,null,0,0,0]
[null,null,null,0,null,null,null,null,null,null,null,null,null,null,null,null,null,null,null,null,null,null,null,null,null,null,null,null,null,0,0,0]
[null,null,null,0,null,null,null,null,null,null,null,null,null,null,null,null,null,null,null,null,null,null,null,null,null,null,null,null,null,0,0,0]
[null,null,null,0,null,null,null,null,null,null,null,null,null,null,null,null,null,null,null,null,null,null,null,null,null,null,null,null,null,0,0,0]
[null,null,null,0,null,null,null,null,null,null,null,null,null,null,null,null,null,null,null,null,null,null,null,null,null,null,null,null,null,0,0,0]
[null,null,null,0,null,null,null,null,null,null,null,null,null,null,null,null,null,null,null,null,null,null,null,null,null,null,null,null,null,0,0,0]
[null,null,null,0,null,null,null,null,null,null,null,null,null,null,null,null,null,null,null,null,null,null,null,null,null,null,null,null,null,0,0,0]
[null,null,null,0,null,null,null,null,null,null,null,null,null,null,null,null,null,null,null,null,null,null,null,null,null,null,null,null,null,0,0,0]
[null,null,null,0,null,null,null,null,null,null,null,null,null,null,null,null,null,null,null,null,null,null,null,null,null,null,null,null,null,0,0,0]
[null,null,null,0,null,null,null,null,null,null,null,null,null,null,null,null,null,null,null,null,null,null,null,null,null,null,null,null,null,0,0,0]
[null,null,null,0,null,null,null,null,null,null,null,null,null,null,null,null,null,null,null,null,null,null,null,null,null,null,null,null,null,0,0,0]
[null,null,null,0,null,null,null,null,null,null,null,null,null,null,null,null,null,null,null,null,null,null,null,null,null,null,null,null,null,0,0,0]
[null,null,null,0,null,null,null,null,null,null,null,null,null,null,null,null,null,null,null,null,null,null,null,null,null,null,null,null,null,0,0,0]
[null,null,null,0,null,null,null,null,null,null,null,null,null,null,null,null,null,null,null,null,null,null,null,null,null,null,null,null,null,0,0,0]
[null,null,null,0,null,null,null,null,null,null,null,null,null,null,null,null,null,null,null,null,null,null,null,null,null,null,null,null,null,0,0,0]
[null,null,null,0,null,null,null,null,null,null,null,null,null,null,null,null,null,null,null,null,null,null,null,null,null,null,null,null,null,0,0,0]
[null,null,null,{"$f":"SUM(LARGE(E100:AF100,1)+LARGE(E100:AF100,2)+LARGE(E100:AF100,3))","v":0},null,null,null,null,null,null,null,null,null,null,null,null,null,null,null,null,null,null,null,null,null,null,null,null,null,0,0,0]
[null,null,null,0,null,null,null,null,null,null,null,null,null,null,null,null,null,null,null,null,null,null,null,null,null,null,null,null,null,0,0,0]
[null,null,null,0,null,null,null,null,null,null,null,null,null,null,null,null,null,null,null,null,null,null,null,null,null,null,null,null,null,0,0,0]
[null,null,null,0,null,null,null,null,null,null,null,null,null,null,null,null,null,null,null,null,null,null,null,null,null,null,null,null,null,0,0,0]
[null,null,null,0,null,null,null,null,null,null,null,null,null,null,null,null,null,null,null,null,null,null,null,null,null,null,null,null,null,0,0,0]
[null,null,null,0,null,null,null,null,null,null,null,null,null,null,null,null,null,null,null,null,null,null,null,null,null,null,null,null,null,0,0,0]
[null,null,null,0,null,null,null,null,null,null,null,null,null,null,null,null,null,null,null,null,null,null,null,null,null,null,null,null,null,0,0,0]
[null,null,null,0,null,null,null,null,null,null,null,null,null,null,null,null,null,null,null,null,null,null,null,null,null,null,null,null,null,0,0,0]
[null,null,null,0,null,null,null,null,null,null,null,null,null,null,null,null,null,null,null,null,null,null,null,null,null,null,null,null,null,0,0,0]

{"sheet":"žačky mladší","index":2,"n_rows":88,"n_cols":29,"rows_kept":88,"cut":false,"hidden":false,"merged":[[2,1,2,2]]}
["18+5",null,"Žačky mladší",null,"Memorial","VC","Slánská","Chomutovská","Novoměstská","Vánoční","Slánská","VC města","Lounská","Křišťálová","Hronovská","Ledečská","Kralupská","Malá cena","Lužické"]
[null,"Počet postupujících",24,{"$f":"LARGE(D4:D88,C2)","v":21},"Karla Diviše","Podřipska","brusle 1","brusle","bruslička","závod","brusle 2","Mělník","bruslička","brusle Děčín","bruslička","pirueta","klička","Nového Města","ostří"]
[null,"Seřazení od nejlepšího: CTRL+S",null,"Ʃ best 3"]
[1,"Jotovová Leontýna","KK St.Praha",{"$f":"SUM(LARGE(E4:AC4,1)+LARGE(E4:AC4,2)+LARGE(E4:AC4,3))","v":53},null,17,14,null,null,null,null,null,null,null,null,14,22,null,null,null,null,null,null,null,null,null,0,0,0]
[2,"Rejtharová Laura","TJ Sp.N.Město",{"$f":"SUM(LARGE(E5:AC5,1)+LARGE(E5:AC5,2)+LARGE(E5:AC5,3))","v":47},null,null,null,null,18,15,null,null,null,null,14,null,null,11,null,null,null,null,null,null,null,null,0,0,0]
[3,"Čaňková Karolína","PKK Roudnice",{"$f":"SUM(LARGE(E6:AC6,1)+LARGE(E6:AC6,2)+LARGE(E6:AC6,3))","v":46},null,20,null,null,null,null,9,12,14,null,null,null,4,null,null,null,null,null,null,null,null,null,0,0,0]
[3,"Martincová Tereza","TJ Sp.N.Město",{"$f":"SUM(LARGE(E7:AC7,1)+LARGE(E7:AC7,2)+LARGE(E7:AC7,3))","v":46},null,null,null,null,15,14,null,null,null,null,8,null,null,17,null,null,null,null,null,null,null,null,0,0,0]
[5,"Kalušová Kateřina","KK St.Praha",{"$f":"SUM(LARGE(E8:AC8,1)+LARGE(E8:AC8,2)+LARGE(E8:AC8,3))","v":45},null,null,17,null,null,null,null,null,null,null,null,13,15,null,null,null,null,null,null,null,null,null,0,0,0]
[6,"Kristová Anna","KK Poděbrady",{"$f":"SUM(LARGE(E9:AC9,1)+LARGE(E9:AC9,2)+LARGE(E9:AC9,3))","v":42},10,null,null,null,10,18,null,null,null,null,3,6,null,14,null,null,null,null,null,null,null,null,0,0,0]
[7,"Pilousová Barbora","KK St.Praha",{"$f":"SUM(LARGE(E10:AC10,1)+LARGE(E10:AC10,2)+LARGE(E10:AC10,3))","v":41},null,9,11,null,null,21,null,null,null,null,null,null,null,null,6,null,null,null,null,null,null,null,0,0,0]
[8,"Šeba Natálie","HCPZ Kraso Kladno",{"$f":"SUM(LARGE(E11:AC11,1)+LARGE(E11:AC11,2)+LARGE(E11:AC11,3))","v":38},13,null,null,null,null,null,null,null,null,null,null,null,25,null,null,null,null,null,null,null,null,null,0,0,0]
[9,"Henklová Eliška","KK Slaný",{"$f":"SUM(LARGE(E12:AC12,1)+LARGE(E12:AC12,2)+LARGE(E12:AC12,3))","v":37},null,8,null,null,null,null,11,9,6,null,null,null,17,null,null,null,null,null,null,null,null,null,0,0,0]
[10,"Costa Jordao Veronika","Kraso Chrudim",{"$f":"SUM(LARGE(E13:AC13,1)+LARGE(E13:AC13,2)+LARGE(E13:AC13,3))","v":35},null,null,15,null,null,null,null,null,null,null,null,null,null,20,null,null,null,null,null,null,null,null,0,0,0]
[11,"Koláčková Lucie","KK Slaný",{"$f":"SUM(LARGE(E14:AC14,1)+LARGE(E14:AC14,2)+LARGE(E14:AC14,3))","v":33},null,11,null,null,null,null,12,2,4,10,null,null,null,null,5,null,null,null,null,null,null,null,0,0,0]
[11,"Janáčková Nikola","USK Praha",{"$f":"SUM(LARGE(E15:AC15,1)+LARGE(E15:AC15,2)+LARGE(E15:AC15,3))","v":33},null,14,null,null,null,null,null,null,null,null,null,null,19,null,null,null,null,null,null,null,null,null,0,0,0]
[11,"Pešková Justýna","SKK Liberec",{"$f":"SUM(LARGE(E16:AC16,1)+LARGE(E16:AC16,2)+LARGE(E16:AC16,3))","v":33},4,null,null,null,null,13,null,null,null,null,null,8,null,12,null,null,null,null,null,null,null,null,0,0,0]
[14,"Benešová Rozálie","KK Rokycan",{"$f":"SUM(LARGE(E17:AC17,1)+LARGE(E17:AC17,2)+LARGE(E17:AC17,3))","v":30},null,null,null,null,null,null,8,null,8,null,null,null,14,null,null,null,null,null,null,null,null,null,0,0,0]
[15,"Furtáková Laura","HC Tábor",{"$f":"SUM(LARGE(E18:AC18,1)+LARGE(E18:AC18,2)+LARGE(E18:AC18,3))","v":29},null,null,20,null,null,null,null,null,null,null,null,null,null,null,9,null,null,null,null,null,null,null,0,0,0]
[16,"Semeniuková Karolína","KK Dvůr Králové",{"$f":"SUM(LARGE(E19:AC19,1)+LARGE(E19:AC19,2)+LARGE(E19:AC19,3))","v":26},5,null,9,null,null,9,null,null,null,null,null,null,null,8,null,null,null,null,null,null,null,null,0,0,0]
[17,"Spilková Emma","TJ Sp.N.Město",{"$f":"SUM(LARGE(E20:AC20,1)+LARGE(E20:AC20,2)+LARGE(E20:AC20,3))","v":25},null,null,null,null,12,null,null,null,null,null,6,null,null,7,null,null,null,null,null,null,null,null,0,0,0]
[18,"Musilová Lucie","TJ AŠ Ml.Boleslav",{"$f":"SUM(LARGE(E21:AC21,1)+LARGE(E21:AC21,2)+LARGE(E21:AC21,3))","v":24},null,null,null,null,null,24,null,null,null,null,null,null,null,null,null,null,null,null,null,null,null,null,0,0,0]
[18,"Čtvrtečková Magdaléna","TJ Sp.N.Město",{"$f":"SUM(LARGE(E22:AC22,1)+LARGE(E22:AC22,2)+LARGE(E22:AC22,3))","v":24},null,null,null,null,9,null,null,null,null,null,5,null,null,10,null,null,null,null,null,null,null,null,0,0,0]
[20,"Pánková Tereza","HC Rakovík",{"$f":"SUM(LARGE(E23:AC23,1)+LARGE(E23:AC23,2)+LARGE(E23:AC23,3))","v":23},null,null,23,null,null,null,null,null,null,null,null,null,null,null,null,null,null,null,null,null,null,null,0,0,0]
[20,"Škopková Štěpánka","Spartak Trutnov",{"$f":"SUM(LARGE(E24:AC24,1)+LARGE(E24:AC24,2)+LARGE(E24:AC24,3))","v":23},null,null,null,null,8,11,null,null,null,null,2,null,null,4,null,null,null,null,null,null,null,null,0,0,0]
[22,"Manicová Zuzana","Sport Most",{"$f":"SUM(LARGE(E25:AC25,1)+LARGE(E25:AC25,2)+LARGE(E25:AC25,3))","v":22},null,7,null,15,null,null,null,null,null,null,null,null,null,null,null,null,null,null,null,null,null,null,0,0,0]
[22,"Kühnlová Anna","Sp.Trutnov",{"$f":"SUM(LARGE(E26:AC26,1)+LARGE(E26:AC26,2)+LARGE(E26:AC26,3))","v":22},null,null,null,null,6,null,null,null,null,null,11,null,null,5,null,null,null,null,null,null,null,null,0,0,0]
[24,"Křivánková Karolína","KK Slaný",{"$f":"SUM(LARGE(E27:AC27,1)+LARGE(E27:AC27,2)+LARGE(E27:AC27,3))","v":21},null,4,7,null,null,null,null,null,null,4,null,null,10,null,null,null,null,null,null,null,null,null,0,0,0]
[25,"Podlahová Marie","KK Soběslav",{"$f":"SUM(LARGE(E28:AC28,1)+LARGE(E28:AC28,2)+LARGE(E28:AC28,3))","v":20},null,null,null,null,null,null,20,null,null,null,null,null,null,null,null,null,null,null,null,null,null,null,0,0,0]
[25,"Sekyrová Tereza","Spartak Trutnov",{"$f":"SUM(LARGE(E29:AC29,1)+LARGE(E29:AC29,2)+LARGE(E29:AC29,3))","v":20},null,null,null,null,7,null,null,null,null,null,4,null,null,9,null,null,null,null,null,null,null,null,0,0,0]
[26,"Šimková Amálie","KK Dvůr Králové",{"$f":"SUM(LARGE(E30:AC30,1)+LARGE(E30:AC30,2)+LARGE(E30:AC30,3))","v":19},7,null,null,null,null,12,null,null,null,null,null,null,null,null,null,null,null,null,null,null,null,null,0,0,0]
[26,"Horton Sofie Anna","KB Říčany",{"$f":"SUM(LARGE(E31:AC31,1)+LARGE(E31:AC31,2)+LARGE(E31:AC31,3))","v":19},null,null,null,null,null,null,null,4,null,7,null,null,8,null,null,null,null,null,null,null,null,null,0,0,0]
[26,"Andrlíková Zuzana","KK Západ",{"$f":"SUM(LARGE(E32:AC32,1)+LARGE(E32:AC32,2)+LARGE(E32:AC32,3))","v":19},null,null,1,9,null,null,null,null,null,null,null,null,6,null,4,null,null,null,null,null,null,null,0,0,0]
[29,"Zemanová Anežka","SBM Mělník",{"$f":"SUM(LARGE(E33:AC33,1)+LARGE(E33:AC33,2)+LARGE(E33:AC33,3))","v":18},null,6,null,3,null,null,6,6,null,null,null,null,3,null,null,null,null,null,null,null,null,null,0,0,0]
[29,"Havelková Eliška","SKK Liberec",{"$f":"SUM(LARGE(E34:AC34,1)+LARGE(E34:AC34,2)+LARGE(E34:AC34,3))","v":18},null,null,null,null,null,8,null,null,5,null,null,5,null,null,null,null,null,null,null,null,null,null,0,0,0]
[31,"Dvořáková Kristýna","HC Tábor",{"$f":"SUM(LARGE(E35:AC35,1)+LARGE(E35:AC35,2)+LARGE(E35:AC35,3))","v":17},null,null,null,null,null,null,17,null,null,null,null,null,null,null,null,null,null,null,null,null,null,null,0,0,0]
[31,"Luciano Laura","KK St.Praha",{"$f":"SUM(LARGE(E36:AC36,1)+LARGE(E36:AC36,2)+LARGE(E36:AC36,3))","v":17},null,null,5,null,null,null,null,null,null,null,null,null,12,null,null,null,null,null,null,null,null,null,0,0,0]
[31,"Broulíková Veronika","KK Čes.Třebová",{"$f":"SUM(LARGE(E37:AC37,1)+LARGE(E37:AC37,2)+LARGE(E37:AC37,3))","v":17},3,null,null,null,4,7,null,null,null,null,null,null,null,6,null,null,null,null,null,null,null,null,0,0,0]
[31,"Dvořáková Kristýna","HC Tábor",{"$f":"SUM(LARGE(E38:AC38,1)+LARGE(E38:AC38,2)+LARGE(E38:AC38,3))","v":17},null,null,null,5,null,null,null,null,null,null,null,null,null,null,12,null,null,null,null,null,null,null,0,0,0]
[35,"Klejmová Aneta","HC Tábor",{"$f":"SUM(LARGE(E39:AC39,1)+LARGE(E39:AC39,2)+LARGE(E39:AC39,3))","v":16},null,null,12,4,null,null,null,null,null,null,null,null,null,null,null,null,null,null,null,null,null,null,0,0,0]
[35,"Menclová Emma","TJ AŠ Ml.Boleslav",{"$f":"SUM(LARGE(E40:AC40,1)+LARGE(E40:AC40,2)+LARGE(E40:AC40,3))","v":16},null,null,null,null,null,16,null,null,null,null,null,null,null,null,null,null,null,null,null,null,null,null,0,0,0]
[35,"Vurmová Tereza","PKK Roudnice",{"$f":"SUM(LARGE(E41:AC41,1)+LARGE(E41:AC41,2)+LARGE(E41:AC41,3))","v":16},null,5,6,null,null,null,null,null,null,null,null,null,5,null,null,null,null,null,null,null,null,null,0,0,0]
[35,"Veitová Žofie","SKK Ostrov n.O.",{"$f":"SUM(LARGE(E42:AC42,1)+LARGE(E42:AC42,2)+LARGE(E42:AC42,3))","v":16},null,null,null,null,null,null,null,null,null,null,null,null,16,null,null,null,null,null,null,null,null,null,0,0,0]
[35,"Petráňová Monika","KK Čes.Třebová",{"$f":"SUM(LARGE(E43:AC43,1)+LARGE(E43:AC43,2)+LARGE(E43:AC43,3))","v":16},null,null,null,null,3,10,null,null,null,null,null,null,null,3,null,null,null,null,null,null,null,null,0,0,0]
[40,"Sitková Nikola","BK České Budějvice",{"$f":"SUM(LARGE(E44:AC44,1)+LARGE(E44:AC44,2)+LARGE(E44:AC44,3))","v":15},null,null,null,null,null,null,null,null,null,null,null,null,null,null,15,null,null,null,null,null,null,null,0,0,0]
[41,"Koutná Darina","Sport Most",{"$f":"SUM(LARGE(E45:AC45,1)+LARGE(E45:AC45,2)+LARGE(E45:AC45,3))","v":14},null,3,4,7,null,null,null,3,null,null,null,null,null,null,null,null,null,null,null,null,null,null,0,0,0]
[41,"Černíková Karolína","Kraso Chrudim",{"$f":"SUM(LARGE(E46:AC46,1)+LARGE(E46:AC46,2)+LARGE(E46:AC46,3))","v":14},null,null,null,null,null,null,14,null,null,null,null,null,null,null,null,null,null,null,null,null,null,null,0,0,0]
[43,"Pokorná Tereza","HC Rakovík",{"$f":"SUM(LARGE(E47:AC47,1)+LARGE(E47:AC47,2)+LARGE(E47:AC47,3))","v":13},null,null,13,null,null,null,null,null,null,null,null,null,null,null,null,null,null,null,null,null,null,null,0,0,0]
[43,"Dandová Anna","TJ Kralupy",{"$f":"SUM(LARGE(E48:AC48,1)+LARGE(E48:AC48,2)+LARGE(E48:AC48,3))","v":13},null,2,null,null,null,null,4,1,null,2,null,null,7,null,null,null,null,null,null,null,null,null,0,0,0]
[43,"Vrátná Adéla","BK Variace Liberec",{"$f":"SUM(LARGE(E49:AC49,1)+LARGE(E49:AC49,2)+LARGE(E49:AC49,3))","v":13},null,null,null,null,null,null,null,null,null,null,null,null,13,null,null,null,null,null,null,null,null,null,0,0,0]
[46,"Rabová Anika","KK St.Praha",{"$f":"SUM(LARGE(E50:AC50,1)+LARGE(E50:AC50,2)+LARGE(E50:AC50,3))","v":12},null,12,null,null,null,null,null,null,null,null,null,null,null,null,null,null,null,null,null,null,null,null,0,0,0]
[46,"Blailová Edita","KK Chomutov",{"$f":"SUM(LARGE(E51:AC51,1)+LARGE(E51:AC51,2)+LARGE(E51:AC51,3))","v":12},null,null,null,12,null,null,null,null,null,null,null,null,null,null,null,null,null,null,null,null,null,null,0,0,0]
[48,"Händlová Klára","SKK Liberec",{"$f":"SUM(LARGE(E52:AC52,1)+LARGE(E52:AC52,2)+LARGE(E52:AC52,3))","v":11},null,null,null,null,null,null,null,null,11,null,null,null,null,null,null,null,null,null,null,null,null,null,0,0,0]
[48,"Danišová Barbora","ÚKK Ústí n.L.",{"$f":"SUM(LARGE(E53:AC53,1)+LARGE(E53:AC53,2)+LARGE(E53:AC53,3))","v":11},null,null,null,null,null,null,null,null,null,null,null,null,11,null,null,null,null,null,null,null,null,null,0,0,0]
[50,"Tůmová Justina Anna","USK Praha",{"$f":"SUM(LARGE(E54:AC54,1)+LARGE(E54:AC54,2)+LARGE(E54:AC54,3))","v":10},null,10,null,null,null,null,null,null,null,null,null,null,null,null,null,null,null,null,null,null,null,null,0,0,0]
[50,"Gelnarová Laura","HC Rakovík",{"$f":"SUM(LARGE(E55:AC55,1)+LARGE(E55:AC55,2)+LARGE(E55:AC55,3))","v":10},null,null,10,null,null,null,null,null,null,null,null,null,null,null,null,null,null,null,null,null,null,null,0,0,0]
[50,"Vršecká Tereza","KK St.Praha",{"$f":"SUM(LARGE(E56:AC56,1)+LARGE(E56:AC56,2)+LARGE(E56:AC56,3))","v":10},null,null,null,null,null,null,10,null,null,null,null,null,null,null,null,null,null,null,null,null,null,null,0,0,0]
[50,"Vlčková Klára","MBK Kraso Vyškov",{"$f":"SUM(LARGE(E57:AC57,1)+LARGE(E57:AC57,2)+LARGE(E57:AC57,3))","v":10},null,null,null,null,null,null,null,null,null,null,null,10,null,null,null,null,null,null,null,null,null,null,0,0,0]
[54,"Šulistová Barbora","KK S. Praha",{"$f":"SUM(LARGE(E58:AC58,1)+LARGE(E58:AC58,2)+LARGE(E58:AC58,3))","v":9},null,null,null,null,null,null,null,null,null,null,null,null,9,null,null,null,null,null,null,null,null,null,0,0,0]
[55,"Pokorná Andrea","HC Rakovník",{"$f":"SUM(LARGE(E59:AC59,1)+LARGE(E59:AC59,2)+LARGE(E59:AC59,3))","v":8},null,null,8,null,null,null,null,null,null,null,null,null,null,null,null,null,null,null,null,null,null,null,0,0,0]
[55,"Petráňová Andrea","KK Čes.Třebová",{"$f":"SUM(LARGE(E60:AC60,1)+LARGE(E60:AC60,2)+LARGE(E60:AC60,3))","v":8},null,null,null,null,5,1,null,null,null,null,null,null,null,2,null,null,null,null,null,null,null,null,0,0,0]
[57,"Uherská Anna","KK Rokycany",{"$f":"SUM(LARGE(E61:AC61,1)+LARGE(E61:AC61,2)+LARGE(E61:AC61,3))","v":7},null,null,null,null,null,null,7,null,null,null,null,null,null,null,null,null,null,null,null,null,null,null,0,0,0]
[57,"Suchánková Dominika","SVČ KK Hodonín",{"$f":"SUM(LARGE(E62:AC62,1)+LARGE(E62:AC62,2)+LARGE(E62:AC62,3))","v":7},null,null,null,null,null,null,null,null,null,null,null,7,null,null,null,null,null,null,null,null,null,null,0,0,0]
[57,"Pánková Anna","KK Soběslav",{"$f":"SUM(LARGE(E63:AC63,1)+LARGE(E63:AC63,2)+LARGE(E63:AC63,3))","v":7},null,null,null,null,null,null,null,null,null,null,null,null,null,null,7,null,null,null,null,null,null,null,0,0,0]
[60,"Mašková Markéta","KK Chomutov",{"$f":"SUM(LARGE(E64:AC64,1)+LARGE(E64:AC64,2)+LARGE(E64:AC64,3))","v":6},null,null,null,6,null,null,null,null,null,null,null,null,null,null,null,null,null,null,null,null,null,null,0,0,0]
[60,"Disha Ester","TJ Kralupy",{"$f":"SUM(LARGE(E65:AC65,1)+LARGE(E65:AC65,2)+LARGE(E65:AC65,3))","v":6},null,null,3,2,null,null,null,null,null,null,null,null,1,null,null,null,null,null,null,null,null,null,0,0,0]
[60,"Brabencová Anna","HC Ledeč n.S.",{"$f":"SUM(LARGE(E66:AC66,1)+LARGE(E66:AC66,2)+LARGE(E66:AC66,3))","v":6},null,null,null,null,null,null,null,null,null,null,null,3,null,null,3,null,null,null,null,null,null,null,0,0,0]
[63,"Kejzarová Barbora","KK Dvůr Králové",{"$f":"SUM(LARGE(E67:AC67,1)+LARGE(E67:AC67,2)+LARGE(E67:AC67,3))","v":5},null,null,null,null,null,null,5,null,null,null,null,null,null,null,null,null,null,null,null,null,null,null,0,0,0]
[63,"Vaňátková Klára","SKK Liberec",{"$f":"SUM(LARGE(E68:AC68,1)+LARGE(E68:AC68,2)+LARGE(E68:AC68,3))","v":5},null,null,null,null,null,null,null,null,3,null,null,2,null,null,null,null,null,null,null,null,null,null,0,0,0]
[65,"Brabencová Barbora","HC Ledeč",{"$f":"SUM(LARGE(E69:AC69,1)+LARGE(E69:AC69,2)+LARGE(E69:AC69,3))","v":4},null,null,null,null,null,4,null,null,null,null,null,null,null,null,null,null,null,null,null,null,null,null,0,0,0]
[65,"Kodysová Markéta","HC Ledeč n.S.",{"$f":"SUM(LARGE(E70:AC70,1)+LARGE(E70:AC70,2)+LARGE(E70:AC70,3))","v":4},null,null,null,null,null,null,null,null,null,null,null,4,null,null,null,null,null,null,null,null,null,null,0,0,0]
[65,"Doušová Klára","KK Slaný",{"$f":"SUM(LARGE(E71:AC71,1)+LARGE(E71:AC71,2)+LARGE(E71:AC71,3))","v":4},null,null,null,null,null,null,2,null,null,null,null,null,2,null,null,null,null,null,null,null,null,null,0,0,0]
[68,"Broulíková Nela","KK Čes.Třebová",{"$f":"SUM(LARGE(E72:AC72,1)+LARGE(E72:AC72,2)+LARGE(E72:AC72,3))","v":3},1,null,null,null,null,2,null,null,null,null,null,null,null,null,null,null,null,null,null,null,null,null,0,0,0]
[68,"Toncarová Tereza","TJ AŠ M.B.",{"$f":"SUM(LARGE(E73:AC73,1)+LARGE(E73:AC73,2)+LARGE(E73:AC73,3))","v":3},null,null,null,null,null,3,null,null,null,null,null,null,null,null,null,null,null,null,null,null,null,null,0,0,0]
[68,"Hejmalíčková Eliška","TJ AŠ Ml.Boleslav",{"$f":"SUM(LARGE(E74:AC74,1)+LARGE(E74:AC74,2)+LARGE(E74:AC74,3))","v":3},null,null,null,null,null,null,3,null,null,null,null,null,null,null,null,null,null,null,null,null,null,null,0,0,0]
[68,"Broulíková Nela","KK Čes.Třebová",{"$f":"SUM(LARGE(E75:AC75,1)+LARGE(E75:AC75,2)+LARGE(E75:AC75,3))","v":3},null,null,null,null,2,null,null,null,null,null,null,null,null,1,null,null,null,null,null,null,null,null,0,0,0]
[68,"Bělohradská Barbora","HC Ledeč n.S.",{"$f":"SUM(LARGE(E76:AC76,1)+LARGE(E76:AC76,2)+LARGE(E76:AC76,3))","v":3},null,null,null,null,null,null,null,null,null,null,null,1,null,null,2,null,null,null,null,null,null,null,0,0,0]
[73,"Rašková Tereza","KK Čes.Třebová",{"$f":"SUM(LARGE(E77:AC77,1)+LARGE(E77:AC77,2)+LARGE(E77:AC77,3))","v":2},2,null,null,null,null,null,null,null,null,null,null,null,null,null,null,null,null,null,null,null,null,null,0,0,0]
[73,"Pechová Anna Marie","KK Slaný",{"$f":"SUM(LARGE(E78:AC78,1)+LARGE(E78:AC78,2)+LARGE(E78:AC78,3))","v":2},null,null,2,null,null,null,null,null,null,null,null,null,null,null,null,null,null,null,null,null,null,null,0,0,0]
[73,"Verissimo Mia","HC Slovan Louny",{"$f":"SUM(LARGE(E79:AC79,1)+LARGE(E79:AC79,2)+LARGE(E79:AC79,3))","v":2},null,null,null,null,null,null,null,null,2,null,null,null,null,null,null,null,null,null,null,null,null,null,0,0,0]
[73,"Říhová Lucie","KK Čes.Třebová",{"$f":"SUM(LARGE(E80:AC80,1)+LARGE(E80:AC80,2)+LARGE(E80:AC80,3))","v":2},null,null,null,null,1,null,null,null,null,null,1,null,null,null,null,null,null,null,null,null,null,null,0,0,0]
[77,"Dvorská Anna","PKK Roudnice",{"$f":"SUM(LARGE(E81:AC81,1)+LARGE(E81:AC81,2)+LARGE(E81:AC81,3))","v":1},null,1,null,null,null,null,null,null,null,null,null,null,null,null,null,null,null,null,null,null,null,null,0,0,0]
[77,"Vobnášilová Alena","SKK Děčín",{"$f":"SUM(LARGE(E82:AC82,1)+LARGE(E82:AC82,2)+LARGE(E82:AC82,3))","v":1},null,null,null,1,null,null,null,null,null,null,null,null,null,null,null,null,null,null,null,null,null,null,0,0,0]
[77,"Jotovová Dominika","KK St.Praha",{"$f":"SUM(LARGE(E83:AC83,1)+LARGE(E83:AC83,2)+LARGE(E83:AC83,3))","v":1},null,null,null,null,null,null,1,null,null,null,null,null,null,null,null,null,null,null,null,null,null,null,0,0,0]
[77,"Smolíková Jana","TJ Loko. Veselí n.L.",{"$f":"SUM(LARGE(E84:AC84,1)+LARGE(E84:AC84,2)+LARGE(E84:AC84,3))","v":1},null,null,null,null,null,null,null,null,1,null,null,null,null,null,null,null,null,null,null,null,null,null,0,0,0]
[77,"Štěpánová Eliška","ÚKK Ústí n.L.",{"$f":"SUM(LARGE(E85:AC85,1)+LARGE(E85:AC85,2)+LARGE(E85:AC85,3))","v":1},null,null,null,null,null,null,null,null,null,1,null,null,null,null,null,null,null,null,null,null,null,null,0,0,0]
[77,"Folbergová Simona","HC Kraso Tábor",{"$f":"SUM(LARGE(E86:AC86,1)+LARGE(E86:AC86,2)+LARGE(E86:AC86,3))","v":1},null,null,null,null,null,null,null,null,null,null,null,null,null,null,1,null,null,null,null,null,null,null,0,0,0]
[null,null,null,{"$f":"SUM(LARGE(E87:AC87,1)+LARGE(E87:AC87,2)+LARGE(E87:AC87,3))","v":0},null,null,null,null,null,null,null,null,null,null,null,null,null,null,null,null,null,null,null,null,null,null,0,0,0]
[null,null,null,{"$f":"SUM(LARGE(E88:AC88,1)+LARGE(E88:AC88,2)+LARGE(E88:AC88,3))","v":0},null,null,null,null,null,null,null,null,null,null,null,null,null,null,null,null,null,null,null,null,null,null,0,0,0]

{"sheet":"žačky ","index":3,"n_rows":57,"n_cols":30,"rows_kept":57,"cut":false,"hidden":false,"merged":[[2,1,2,2]]}
["18+0",null,"Žačky ",null,null,null,null,null,null,null,"Lounská","Křišťálová","Ledečská","Kralupská","Malá cena","Lužické"]
[null,"Počet postupujících",24,{"$f":"LARGE(D4:D57,C2)","v":15},"Mem.KD","VC Podř.","Slánská br.","Chomut.","Novo.br.","Vánoční","bruslička","brusle Děčín","pirueta","klička","Nového Města","ostří"]
[null,"Seřazení od nejlepšího: CTRL+S",null,"Ʃ best 3"]
[1,"Dusíková Šarlota","SKK Děčín",{"$f":"SUM(LARGE(E4:AD4,1)+LARGE(E4:AD4,2)+LARGE(E4:AD4,3))","v":47},null,null,null,16,null,null,null,12,null,19,null,null,null,null,null,null,null,null,null,null,null,null,null,0,0,0]
[2,"Kimličková Adéla","TJ Kralupy",{"$f":"SUM(LARGE(E5:AD5,1)+LARGE(E5:AD5,2)+LARGE(E5:AD5,3))","v":37},null,13,null,12,null,null,null,null,8,12,null,null,null,null,null,null,null,null,null,null,null,null,null,0,0,0]
[3,"Kovářová Michaela","TJ Kralupy",{"$f":"SUM(LARGE(E6:AD6,1)+LARGE(E6:AD6,2)+LARGE(E6:AD6,3))","v":32},null,null,10,14,null,null,null,null,null,8,null,null,null,null,null,null,null,null,null,null,null,null,null,0,0,0]
[4,"Budianu Viktorie","SKK Děčín",{"$f":"SUM(LARGE(E7:AD7,1)+LARGE(E7:AD7,2)+LARGE(E7:AD7,3))","v":29},null,null,null,17,null,null,null,6,null,6,null,null,null,null,null,null,null,null,null,null,null,null,null,0,0,0]
[5,"Kitlerová Petra","BK Hr.Kr.",{"$f":"SUM(LARGE(E8:AD8,1)+LARGE(E8:AD8,2)+LARGE(E8:AD8,3))","v":27},11,null,null,null,7,9,null,null,null,null,7,null,null,null,null,null,null,null,null,null,null,null,null,0,0,0]
[5,"Vondrová Veronika","KK Rokyca.",{"$f":"SUM(LARGE(E9:AD9,1)+LARGE(E9:AD9,2)+LARGE(E9:AD9,3))","v":27},null,null,15,null,null,null,12,null,null,null,null,null,null,null,null,null,null,null,null,null,null,null,null,0,0,0]
[7,"Hüblová Viktorie ","HC Litvínov",{"$f":"SUM(LARGE(E10:AD10,1)+LARGE(E10:AD10,2)+LARGE(E10:AD10,3))","v":26},null,null,null,26,null,null,null,null,null,null,null,null,null,null,null,null,null,null,null,null,null,null,null,0,0,0]
[7,"Soukupová Barbora","PKK Roud.",{"$f":"SUM(LARGE(E11:AD11,1)+LARGE(E11:AD11,2)+LARGE(E11:AD11,3))","v":26},null,2,7,10,null,null,9,4,null,null,null,null,null,null,null,null,null,null,null,null,null,null,null,0,0,0]
[9,"Kolářová Žaneta","PKK Roud.",{"$f":"SUM(LARGE(E12:AD12,1)+LARGE(E12:AD12,2)+LARGE(E12:AD12,3))","v":25},null,1,3,13,null,null,null,3,null,9,null,null,null,null,null,null,null,null,null,null,null,null,null,0,0,0]
[10,"Hubková Natalie","SpMost",{"$f":"SUM(LARGE(E13:AD13,1)+LARGE(E13:AD13,2)+LARGE(E13:AD13,3))","v":23},null,null,null,23,null,null,null,null,null,null,null,null,null,null,null,null,null,null,null,null,null,null,null,0,0,0]
[11,"Pisková Markéta","KK Slaný",{"$f":"SUM(LARGE(E14:AD14,1)+LARGE(E14:AD14,2)+LARGE(E14:AD14,3))","v":22},null,10,8,null,null,null,null,null,null,4,null,null,null,null,null,null,null,null,null,null,null,null,null,0,0,0]
[11,"Kopecká Alexandra","TJ Kralupy",{"$f":"SUM(LARGE(E15:AD15,1)+LARGE(E15:AD15,2)+LARGE(E15:AD15,3))","v":22},null,null,null,7,null,null,null,2,null,13,null,null,null,null,null,null,null,null,null,null,null,null,null,0,0,0]
[11,"Vurmová Kateřina","PKK Roud.",{"$f":"SUM(LARGE(E16:AD16,1)+LARGE(E16:AD16,2)+LARGE(E16:AD16,3))","v":22},null,null,null,null,null,null,null,null,null,22,null,null,null,null,null,null,null,null,null,null,null,null,null,0,0,0]
[14,"Machulová Hana","TJ Kralupy",{"$f":"SUM(LARGE(E17:AD17,1)+LARGE(E17:AD17,2)+LARGE(E17:AD17,3))","v":21},null,null,null,3,null,null,null,9,5,7,null,null,null,null,null,null,null,null,null,null,null,null,null,0,0,0]
[15,"Švecová Leona","HC Kr.Táb.",{"$f":"SUM(LARGE(E18:AD18,1)+LARGE(E18:AD18,2)+LARGE(E18:AD18,3))","v":21},null,null,2,null,null,null,null,null,null,10,null,9,null,null,null,null,null,null,null,null,null,null,null,0,0,0]
[16,"Maříková Štěpánka","SpMost",{"$f":"SUM(LARGE(E19:AD19,1)+LARGE(E19:AD19,2)+LARGE(E19:AD19,3))","v":20},null,null,null,20,null,null,null,null,null,null,null,null,null,null,null,null,null,null,null,null,null,null,null,0,0,0]
[17,"Karešová Karolína","Kraso Chru.",{"$f":"SUM(LARGE(E20:AD20,1)+LARGE(E20:AD20,2)+LARGE(E20:AD20,3))","v":19},null,null,9,null,null,null,null,null,null,null,10,null,null,null,null,null,null,null,null,null,null,null,null,0,0,0]
[17,"Sedláčková Anna","KK Dvůr Kr.",{"$f":"SUM(LARGE(E21:AD21,1)+LARGE(E21:AD21,2)+LARGE(E21:AD21,3))","v":19},8,null,null,null,null,6,null,null,null,null,5,null,null,null,null,null,null,null,null,null,null,null,null,0,0,0]
[19,"Loucká Dominika","SpMost",{"$f":"SUM(LARGE(E22:AD22,1)+LARGE(E22:AD22,2)+LARGE(E22:AD22,3))","v":18},null,7,null,11,null,null,null,null,null,null,null,null,null,null,null,null,null,null,null,null,null,null,null,0,0,0]
[19,"Tojmarová Petra","SKK Děčín",{"$f":"SUM(LARGE(E23:AD23,1)+LARGE(E23:AD23,2)+LARGE(E23:AD23,3))","v":18},null,null,18,null,null,null,null,null,null,null,null,null,null,null,null,null,null,null,null,null,null,null,null,0,0,0]
[19,"Škrdlantová Veronika","BK Příbram",{"$f":"SUM(LARGE(E24:AD24,1)+LARGE(E24:AD24,2)+LARGE(E24:AD24,3))","v":18},null,null,null,18,null,null,null,null,null,null,null,null,null,null,null,null,null,null,null,null,null,null,null,0,0,0]
[19,"Orlichová Nikola","KK Čes.Tř.",{"$f":"SUM(LARGE(E25:AD25,1)+LARGE(E25:AD25,2)+LARGE(E25:AD25,3))","v":18},5,null,null,null,null,null,null,null,null,null,13,null,null,null,null,null,null,null,null,null,null,null,null,0,0,0]
[23,"Holubová Nela","SKK Sparta Praha",{"$f":"SUM(LARGE(E26:AD26,1)+LARGE(E26:AD26,2)+LARGE(E26:AD26,3))","v":16},null,null,null,null,null,null,null,null,null,16,null,null,null,null,null,null,null,null,null,null,null,null,null,0,0,0]
[24,"Kujalová Tereza","BK Příbram",{"$f":"SUM(LARGE(E27:AD27,1)+LARGE(E27:AD27,2)+LARGE(E27:AD27,3))","v":15},null,null,null,15,null,null,null,null,null,null,null,null,null,null,null,null,null,null,null,null,null,null,null,0,0,0]
[25,"Machulová Markéta","TJ Kralupy",{"$f":"SUM(LARGE(E28:AD28,1)+LARGE(E28:AD28,2)+LARGE(E28:AD28,3))","v":14},null,4,5,5,null,null,null,null,null,3,null,null,null,null,null,null,null,null,null,null,null,null,null,0,0,0]
[25,"Mecnerová Jana Anna","SKK Ostrov n.O.",{"$f":"SUM(LARGE(E29:AD29,1)+LARGE(E29:AD29,2)+LARGE(E29:AD29,3))","v":14},null,null,null,null,null,null,null,null,null,14,null,null,null,null,null,null,null,null,null,null,null,null,null,0,0,0]
[27,"Poková Adéla","Kraso Chru.",{"$f":"SUM(LARGE(E30:AD30,1)+LARGE(E30:AD30,2)+LARGE(E30:AD30,3))","v":12},null,null,12,null,null,null,null,null,null,null,null,null,null,null,null,null,null,null,null,null,null,null,null,0,0,0]
[27,"Hradecká Karolína","KK Nymb.",{"$f":"SUM(LARGE(E31:AD31,1)+LARGE(E31:AD31,2)+LARGE(E31:AD31,3))","v":12},null,null,null,null,null,12,null,null,null,null,null,null,null,null,null,null,null,null,null,null,null,null,null,0,0,0]
[27,"Lichá Viktorie","KK Kraso Tachov",{"$f":"SUM(LARGE(E32:AD32,1)+LARGE(E32:AD32,2)+LARGE(E32:AD32,3))","v":12},null,null,null,null,null,null,1,null,null,11,null,null,null,null,null,null,null,null,null,null,null,null,null,0,0,0]
[27,"Bělonohá Tereza","BK Hr.Kr.",{"$f":"SUM(LARGE(E33:AD33,1)+LARGE(E33:AD33,2)+LARGE(E33:AD33,3))","v":12},3,null,null,null,5,2,null,null,null,null,4,null,null,null,null,null,null,null,null,null,null,null,null,0,0,0]
[31,"Křížová Markéta","KK Západ",{"$f":"SUM(LARGE(E34:AD34,1)+LARGE(E34:AD34,2)+LARGE(E34:AD34,3))","v":11},null,3,4,null,null,null,4,null,null,1,null,null,null,null,null,null,null,null,null,null,null,null,null,0,0,0]
[32,"Vitmayerová Alexandra ","SpMost",{"$f":"SUM(LARGE(E35:AD35,1)+LARGE(E35:AD35,2)+LARGE(E35:AD35,3))","v":9},null,null,null,9,null,null,null,null,null,null,null,null,null,null,null,null,null,null,null,null,null,null,null,0,0,0]
[32,"Volodina Žaneta","TJ Lok. Veselí n.L.",{"$f":"SUM(LARGE(E36:AD36,1)+LARGE(E36:AD36,2)+LARGE(E36:AD36,3))","v":9},null,null,null,null,null,null,6,null,null,null,null,3,null,null,null,null,null,null,null,null,null,null,null,0,0,0]
[34,"Kaiserová Kateřina","KK Kar.Vary",{"$f":"SUM(LARGE(E37:AD37,1)+LARGE(E37:AD37,2)+LARGE(E37:AD37,3))","v":8},null,null,null,8,null,null,null,null,null,null,null,null,null,null,null,null,null,null,null,null,null,null,null,0,0,0]
[34,"Špačková Klára","KK Kraso Tachov",{"$f":"SUM(LARGE(E38:AD38,1)+LARGE(E38:AD38,2)+LARGE(E38:AD38,3))","v":8},null,null,null,null,null,null,3,null,null,5,null,null,null,null,null,null,null,null,null,null,null,null,null,0,0,0]
[34,"Sedláčková Adéla","KK Dvůr Kr.",{"$f":"SUM(LARGE(E39:AD39,1)+LARGE(E39:AD39,2)+LARGE(E39:AD39,3))","v":8},2,null,null,null,null,3,null,null,null,null,3,null,null,null,null,null,null,null,null,null,null,null,null,0,0,0]
[37,"Hrubá Natálie","KK Dvůr Kr.",{"$f":"SUM(LARGE(E40:AD40,1)+LARGE(E40:AD40,2)+LARGE(E40:AD40,3))","v":7},1,null,null,null,null,4,null,null,null,null,2,null,null,null,null,null,null,null,null,null,null,null,null,0,0,0]
[38,"Říhová Anežka","Kraso Chru.",{"$f":"SUM(LARGE(E41:AD41,1)+LARGE(E41:AD41,2)+LARGE(E41:AD41,3))","v":6},null,null,6,null,null,null,null,null,null,null,null,null,null,null,null,null,null,null,null,null,null,null,null,0,0,0]
[38,"Kalčicová Karin","BK Příbram",{"$f":"SUM(LARGE(E42:AD42,1)+LARGE(E42:AD42,2)+LARGE(E42:AD42,3))","v":6},null,null,null,6,null,null,null,null,null,null,null,null,null,null,null,null,null,null,null,null,null,null,null,0,0,0]
[38,"Witošová Eliška","HC Louny",{"$f":"SUM(LARGE(E43:AD43,1)+LARGE(E43:AD43,2)+LARGE(E43:AD43,3))","v":6},null,null,null,4,null,null,2,null,null,null,null,null,null,null,null,null,null,null,null,null,null,null,null,0,0,0]
[38,"Balounová Nikol","TJ Lok. Veselí n.L.",{"$f":"SUM(LARGE(E44:AD44,1)+LARGE(E44:AD44,2)+LARGE(E44:AD44,3))","v":6},null,null,null,null,null,null,null,null,null,null,null,6,null,null,null,null,null,null,null,null,null,null,null,0,0,0]
[42,"Nečajeva Leontýna Bianca","USK PH",{"$f":"SUM(LARGE(E45:AD45,1)+LARGE(E45:AD45,2)+LARGE(E45:AD45,3))","v":5},null,5,null,null,null,null,null,null,null,null,null,null,null,null,null,null,null,null,null,null,null,null,null,0,0,0]
[43,"Kafková Tereza","HC Tábor",{"$f":"SUM(LARGE(E46:AD46,1)+LARGE(E46:AD46,2)+LARGE(E46:AD46,3))","v":3},null,null,null,2,null,null,null,null,null,null,null,1,null,null,null,null,null,null,null,null,null,null,null,0,0,0]
[44,"Rabová Anika","KK Stadion Praha",{"$f":"SUM(LARGE(E47:AD47,1)+LARGE(E47:AD47,2)+LARGE(E47:AD47,3))","v":2},null,null,null,null,null,null,null,null,2,null,null,null,null,null,null,null,null,null,null,null,null,null,null,0,0,0]
[44,"Kozáková Natálie","KK Rokycany",{"$f":"SUM(LARGE(E48:AD48,1)+LARGE(E48:AD48,2)+LARGE(E48:AD48,3))","v":2},null,null,null,null,null,null,null,null,null,2,null,null,null,null,null,null,null,null,null,null,null,null,null,0,0,0]
[44,"Týčová Adéla","TJ Kr.Nách.",{"$f":"SUM(LARGE(E49:AD49,1)+LARGE(E49:AD49,2)+LARGE(E49:AD49,3))","v":2},null,null,null,1,null,null,null,null,null,null,1,null,null,null,null,null,null,null,null,null,null,null,null,0,0,0]
[47,"Vágnerová Veronika","HC Litvínov",{"$f":"SUM(LARGE(E50:AD50,1)+LARGE(E50:AD50,2)+LARGE(E50:AD50,3))","v":1},null,null,1,null,null,null,null,null,null,null,null,null,null,null,null,null,null,null,null,null,null,null,null,0,0,0]
[47,"Hoang Huyen Trang Anička","SKK Cheb",{"$f":"SUM(LARGE(E51:AD51,1)+LARGE(E51:AD51,2)+LARGE(E51:AD51,3))","v":1},null,null,null,1,null,null,null,null,null,null,null,null,null,null,null,null,null,null,null,null,null,null,null,0,0,0]
[47,"Vosátková Eliška","BK Říčany",{"$f":"SUM(LARGE(E52:AD52,1)+LARGE(E52:AD52,2)+LARGE(E52:AD52,3))","v":1},null,null,null,null,null,null,null,1,null,null,null,null,null,null,null,null,null,null,null,null,null,null,null,0,0,0]
[null,"Kafková Tereza",null,{"$f":"SUM(LARGE(E53:AD53,1)+LARGE(E53:AD53,2)+LARGE(E53:AD53,3))","v":0},null,null,null,null,null,null,null,null,null,null,null,null,null,null,null,null,null,null,null,null,null,null,null,0,0,0]
[null,null,null,{"$f":"SUM(LARGE(E54:AD54,1)+LARGE(E54:AD54,2)+LARGE(E54:AD54,3))","v":0},null,null,null,null,null,null,null,null,null,null,null,null,null,null,null,null,null,null,null,null,null,null,null,0,0,0]
[null,null,null,{"$f":"SUM(LARGE(E55:AD55,1)+LARGE(E55:AD55,2)+LARGE(E55:AD55,3))","v":0},null,null,null,null,null,null,null,null,null,null,null,null,null,null,null,null,null,null,null,null,null,null,null,0,0,0]
[null,null,null,{"$f":"SUM(LARGE(E56:AD56,1)+LARGE(E56:AD56,2)+LARGE(E56:AD56,3))","v":0},null,null,null,null,null,null,null,null,null,null,null,null,null,null,null,null,null,null,null,null,null,null,null,0,0,0]
[null,null,null,{"$f":"SUM(LARGE(E57:AD57,1)+LARGE(E57:AD57,2)+LARGE(E57:AD57,3))","v":0},null,null,null,null,null,null,null,null,null,null,null,null,null,null,null,null,null,null,null,null,null,null,null,0,0,0]

{"sheet":"žáci ","index":4,"n_rows":31,"n_cols":23,"rows_kept":31,"cut":false,"hidden":false,"merged":[]}
["8+0",null,"Žáci",null,"VC","Slánská","Ledečská","Kralupská "]
[null,"Počet postupujících",24,{"$f":"LARGE(D4:D31,C2)","v":0},"Podřipska","brusle","pirueta","klička"]
[null,null,null,"Ʃ best 3"]
[1,"Kovalík Martin","HC Litvínov",{"$f":"SUM(LARGE(E4:W4,1)+LARGE(E4:W4,2)+LARGE(E4:W4,3))","v":14},6,2,null,6,null,null,null,null,null,null,null,null,null,null,null,null,0,0,0]
[2,"Müller Vojtěch","KK St.Praha",10,null,5,5,null,null,null,null,null,null,null,null,null,null,null,null,null,0,0,0]
[3,"Břeň Štěpán","KK Dvůr Králové",8,null,8,null,null,null,null,null,null,null,null,null,null,null,null,null,null,0,0,0]
[4,"Kodys David","HC Ledeč n.S.",6,null,null,6,null,null,null,null,null,null,null,null,null,null,null,null,null,0,0,0]
[null,null,null,0,null,null,null,null,null,null,null,null,null,null,null,null,null,null,null,null,0,0,0]
[null,null,null,0,null,null,null,null,null,null,null,null,null,null,null,null,null,null,null,null,0,0,0]
[null,null,null,0,null,null,null,null,null,null,null,null,null,null,null,null,null,null,null,null,0,0,0]
[null,null,null,0,null,null,null,null,null,null,null,null,null,null,null,null,null,null,null,null,0,0,0]
[null,null,null,0,null,null,null,null,null,null,null,null,null,null,null,null,null,null,null,null,0,0,0]
[null,null,null,0,null,null,null,null,null,null,null,null,null,null,null,null,null,null,null,null,0,0,0]
[null,null,null,0,null,null,null,null,null,null,null,null,null,null,null,null,null,null,null,null,0,0,0]
[null,null,null,0,null,null,null,null,null,null,null,null,null,null,null,null,null,null,null,null,0,0,0]
[null,null,null,0,null,null,null,null,null,null,null,null,null,null,null,null,null,null,null,null,0,0,0]
[null,null,null,0,null,null,null,null,null,null,null,null,null,null,null,null,null,null,null,null,0,0,0]
[null,null,null,0,null,null,null,null,null,null,null,null,null,null,null,null,null,null,null,null,0,0,0]
[null,null,null,0,null,null,null,null,null,null,null,null,null,null,null,null,null,null,null,null,0,0,0]
[null,null,null,0,null,null,null,null,null,null,null,null,null,null,null,null,null,null,null,null,0,0,0]
[null,null,null,0,null,null,null,null,null,null,null,null,null,null,null,null,null,null,null,null,0,0,0]
[null,null,null,0,null,null,null,null,null,null,null,null,null,null,null,null,null,null,null,null,0,0,0]
[null,null,null,0,null,null,null,null,null,null,null,null,null,null,null,null,null,null,null,null,0,0,0]
[null,null,null,0,null,null,null,null,null,null,null,null,null,null,null,null,null,null,null,null,0,0,0]
[null,null,null,0,null,null,null,null,null,null,null,null,null,null,null,null,null,null,null,null,0,0,0]
[null,null,null,0,null,null,null,null,null,null,null,null,null,null,null,null,null,null,null,null,0,0,0]
[null,null,null,0,null,null,null,null,null,null,null,null,null,null,null,null,null,null,null,null,0,0,0]
[null,null,null,0,null,null,null,null,null,null,null,null,null,null,null,null,null,null,null,null,0,0,0]
[null,null,null,0,null,null,null,null,null,null,null,null,null,null,null,null,null,null,null,null,0,0,0]
[null,null,null,0,null,null,null,null,null,null,null,null,null,null,null,null,null,null,null,null,0,0,0]
[null,null,null,0,null,null,null,null,null,null,null,null,null,null,null,null,null,null,null,null,0,0,0]

{"sheet":"juniorky","index":5,"n_rows":31,"n_cols":23,"rows_kept":31,"cut":false,"hidden":false,"merged":[]}
["8+0",null,"Juniorky",null,"Vánoční","Malá cena"]
[null,"Počet postupujících",24,{"$f":"LARGE(D4:D31,C2)","v":0},"závod","Nového Města"]
[null,null,null,"Ʃ best 3"]
[1,"Sommerová Andrea","KK Dv.Králové",{"$f":"SUM(LARGE(E4:W4,1)+LARGE(E4:W4,2)+LARGE(E4:W4,3))","v":15},6,9,null,null,null,null,null,null,null,null,null,null,null,null,null,null,0,0,0]
[2,"Holubová Kristýna","TJ Kr.Náchod",9,9,null,null,null,null,null,null,null,null,null,null,null,null,null,null,null,0,0,0]
[3,"Březnová Michaela","KK Poděbrady",6,3,3,null,null,null,null,null,null,null,null,null,null,null,null,null,null,0,0,0]
[3,"Librová Karolína","TJ Sp.Nové Město",6,null,6,null,null,null,null,null,null,null,null,null,null,null,null,null,null,0,0,0]
[5,"Kozderková Leona","TJ AŠ Ml.Boleslav",1,1,null,null,null,null,null,null,null,null,null,null,null,null,null,null,null,0,0,0]
[5,"Hůlková Radka","KK Česká Třebová",1,null,1,null,null,null,null,null,null,null,null,null,null,null,null,null,null,0,0,0]
[null,null,null,0,null,null,null,null,null,null,null,null,null,null,null,null,null,null,null,null,0,0,0]
[null,null,null,0,null,null,null,null,null,null,null,null,null,null,null,null,null,null,null,null,0,0,0]
[null,null,null,0,null,null,null,null,null,null,null,null,null,null,null,null,null,null,null,null,0,0,0]
[null,null,null,0,null,null,null,null,null,null,null,null,null,null,null,null,null,null,null,null,0,0,0]
[null,null,null,0,null,null,null,null,null,null,null,null,null,null,null,null,null,null,null,null,0,0,0]
[null,null,null,0,null,null,null,null,null,null,null,null,null,null,null,null,null,null,null,null,0,0,0]
[null,null,null,0,null,null,null,null,null,null,null,null,null,null,null,null,null,null,null,null,0,0,0]
[null,null,null,0,null,null,null,null,null,null,null,null,null,null,null,null,null,null,null,null,0,0,0]
[null,null,null,0,null,null,null,null,null,null,null,null,null,null,null,null,null,null,null,null,0,0,0]
[null,null,null,0,null,null,null,null,null,null,null,null,null,null,null,null,null,null,null,null,0,0,0]
[null,null,null,0,null,null,null,null,null,null,null,null,null,null,null,null,null,null,null,null,0,0,0]
[null,null,null,0,null,null,null,null,null,null,null,null,null,null,null,null,null,null,null,null,0,0,0]
[null,null,null,0,null,null,null,null,null,null,null,null,null,null,null,null,null,null,null,null,0,0,0]
[null,null,null,0,null,null,null,null,null,null,null,null,null,null,null,null,null,null,null,null,0,0,0]
[null,null,null,0,null,null,null,null,null,null,null,null,null,null,null,null,null,null,null,null,0,0,0]
[null,null,null,0,null,null,null,null,null,null,null,null,null,null,null,null,null,null,null,null,0,0,0]
[null,null,null,0,null,null,null,null,null,null,null,null,null,null,null,null,null,null,null,null,0,0,0]
[null,null,null,0,null,null,null,null,null,null,null,null,null,null,null,null,null,null,null,null,0,0,0]
[null,null,null,0,null,null,null,null,null,null,null,null,null,null,null,null,null,null,null,null,0,0,0]
[null,null,null,0,null,null,null,null,null,null,null,null,null,null,null,null,null,null,null,null,0,0,0]
[null,null,null,0,null,null,null,null,null,null,null,null,null,null,null,null,null,null,null,null,0,0,0]
[null,null,null,0,null,null,null,null,null,null,null,null,null,null,null,null,null,null,null,null,0,0,0]

{"sheet":"1","index":6,"n_rows":56,"n_cols":27,"rows_kept":56,"cut":false,"hidden":false,"merged":[]}
[null,"Počet postupujících",24,{"$f":"LARGE(D3:D56,C1)","v":0}]
[null,null,null,"Ʃ best 3"]
[null,null,null,{"$f":"SUM(LARGE(E3:AA3,1)+LARGE(E3:AA3,2)+LARGE(E3:AA3,3))","v":0},null,null,null,null,null,null,null,null,null,null,null,null,null,null,null,null,null,null,null,null,0,0,0]
[null,null,null,0,null,null,null,null,null,null,null,null,null,null,null,null,null,null,null,null,null,null,null,null,0,0,0]
[null,null,null,0,null,null,null,null,null,null,null,null,null,null,null,null,null,null,null,null,null,null,null,null,0,0,0]
[null,null,null,0,null,null,null,null,null,null,null,null,null,null,null,null,null,null,null,null,null,null,null,null,0,0,0]
[null,null,null,0,null,null,null,null,null,null,null,null,null,null,null,null,null,null,null,null,null,null,null,null,0,0,0]
[null,null,null,0,null,null,null,null,null,null,null,null,null,null,null,null,null,null,null,null,null,null,null,null,0,0,0]
[null,null,null,0,null,null,null,null,null,null,null,null,null,null,null,null,null,null,null,null,null,null,null,null,0,0,0]
[null,null,null,0,null,null,null,null,null,null,null,null,null,null,null,null,null,null,null,null,null,null,null,null,0,0,0]
[null,null,null,0,null,null,null,null,null,null,null,null,null,null,null,null,null,null,null,null,null,null,null,null,0,0,0]
[null,null,null,0,null,null,null,null,null,null,null,null,null,null,null,null,null,null,null,null,null,null,null,null,0,0,0]
[null,null,null,0,null,null,null,null,null,null,null,null,null,null,null,null,null,null,null,null,null,null,null,null,0,0,0]
[null,null,null,0,null,null,null,null,null,null,null,null,null,null,null,null,null,null,null,null,null,null,null,null,0,0,0]
[null,null,null,0,null,null,null,null,null,null,null,null,null,null,null,null,null,null,null,null,null,null,null,null,0,0,0]
[null,null,null,0,null,null,null,null,null,null,null,null,null,null,null,null,null,null,null,null,null,null,null,null,0,0,0]
[null,null,null,0,null,null,null,null,null,null,null,null,null,null,null,null,null,null,null,null,null,null,null,null,0,0,0]
[null,null,null,0,null,null,null,null,null,null,null,null,null,null,null,null,null,null,null,null,null,null,null,null,0,0,0]
[null,null,null,0,null,null,null,null,null,null,null,null,null,null,null,null,null,null,null,null,null,null,null,null,0,0,0]
[null,null,null,0,null,null,null,null,null,null,null,null,null,null,null,null,null,null,null,null,null,null,null,null,0,0,0]
[null,null,null,0,null,null,null,null,null,null,null,null,null,null,null,null,null,null,null,null,null,null,null,null,0,0,0]
[null,null,null,0,null,null,null,null,null,null,null,null,null,null,null,null,null,null,null,null,null,null,null,null,0,0,0]
[null,null,null,0,null,null,null,null,null,null,null,null,null,null,null,null,null,null,null,null,null,null,null,null,0,0,0]
[null,null,null,0,null,null,null,null,null,null,null,null,null,null,null,null,null,null,null,null,null,null,null,null,0,0,0]
[null,null,null,0,null,null,null,null,null,null,null,null,null,null,null,null,null,null,null,null,null,null,null,null,0,0,0]
[null,null,null,0,null,null,null,null,null,null,null,null,null,null,null,null,null,null,null,null,null,null,null,null,0,0,0]
[null,null,null,0,null,null,null,null,null,null,null,null,null,null,null,null,null,null,null,null,null,null,null,null,0,0,0]
[null,null,null,0,null,null,null,null,null,null,null,null,null,null,null,null,null,null,null,null,null,null,null,null,0,0,0]
[null,null,null,0,null,null,null,null,null,null,null,null,null,null,null,null,null,null,null,null,null,null,null,null,0,0,0]
[null,null,null,0,null,null,null,null,null,null,null,null,null,null,null,null,null,null,null,null,null,null,null,null,0,0,0]
[null,null,null,0,null,null,null,null,null,null,null,null,null,null,null,null,null,null,null,null,null,null,null,null,0,0,0]
[null,null,null,0,null,null,null,null,null,null,null,null,null,null,null,null,null,null,null,null,null,null,null,null,0,0,0]
[null,null,null,0,null,null,null,null,null,null,null,null,null,null,null,null,null,null,null,null,null,null,null,null,0,0,0]
[null,null,null,0,null,null,null,null,null,null,null,null,null,null,null,null,null,null,null,null,null,null,null,null,0,0,0]
[null,null,null,{"$f":"SUM(LARGE(E35:AA35,1)+LARGE(E35:AA35,2)+LARGE(E35:AA35,3))","v":0},null,null,null,null,null,null,null,null,null,null,null,null,null,null,null,null,null,null,null,null,0,0,0]
[null,null,null,0,null,null,null,null,null,null,null,null,null,null,null,null,null,null,null,null,null,null,null,null,0,0,0]
[null,null,null,0,null,null,null,null,null,null,null,null,null,null,null,null,null,null,null,null,null,null,null,null,0,0,0]
[null,null,null,0,null,null,null,null,null,null,null,null,null,null,null,null,null,null,null,null,null,null,null,null,0,0,0]
[null,null,null,0,null,null,null,null,null,null,null,null,null,null,null,null,null,null,null,null,null,null,null,null,0,0,0]
[null,null,null,0,null,null,null,null,null,null,null,null,null,null,null,null,null,null,null,null,null,null,null,null,0,0,0]
[null,null,null,0,null,null,null,null,null,null,null,null,null,null,null,null,null,null,null,null,null,null,null,null,0,0,0]
[null,null,null,0,null,null,null,null,null,null,null,null,null,null,null,null,null,null,null,null,null,null,null,null,0,0,0]
[null,null,null,0,null,null,null,null,null,null,null,null,null,null,null,null,null,null,null,null,null,null,null,null,0,0,0]
[null,null,null,0,null,null,null,null,null,null,null,null,null,null,null,null,null,null,null,null,null,null,null,null,0,0,0]
[null,null,null,0,null,null,null,null,null,null,null,null,null,null,null,null,null,null,null,null,null,null,null,null,0,0,0]
[null,null,null,0,null,null,null,null,null,null,null,null,null,null,null,null,null,null,null,null,null,null,null,null,0,0,0]
[null,null,null,0,null,null,null,null,null,null,null,null,null,null,null,null,null,null,null,null,null,null,null,null,0,0,0]
[null,null,null,0,null,null,null,null,null,null,null,null,null,null,null,null,null,null,null,null,null,null,null,null,0,0,0]
[null,null,null,0,null,null,null,null,null,null,null,null,null,null,null,null,null,null,null,null,null,null,null,null,0,0,0]
[null,null,null,0,null,null,null,null,null,null,null,null,null,null,null,null,null,null,null,null,null,null,null,null,0,0,0]
[null,null,null,0,null,null,null,null,null,null,null,null,null,null,null,null,null,null,null,null,null,null,null,null,0,0,0]
[null,null,null,0,null,null,null,null,null,null,null,null,null,null,null,null,null,null,null,null,null,null,null,null,0,0,0]
[null,null,null,0,null,null,null,null,null,null,null,null,null,null,null,null,null,null,null,null,null,null,null,null,0,0,0]
[null,null,null,0,null,null,null,null,null,null,null,null,null,null,null,null,null,null,null,null,null,null,null,null,0,0,0]
[null,null,null,0,null,null,null,null,null,null,null,null,null,null,null,null,null,null,null,null,null,null,null,null,0,0,0]
[null,null,null,0,null,null,null,null,null,null,null,null,null,null,null,null,null,null,null,null,null,null,null,null,0,0,0]

{"sheet":"2","index":7,"n_rows":84,"n_cols":29,"rows_kept":84,"cut":false,"hidden":false,"merged":[]}
[null,"Počet postupujících",24,{"$f":"LARGE(D3:D84,C1)","v":0}]
[null,null,null,"Ʃ best 3"]
[null,null,null,{"$f":"SUM(LARGE(E3:AC3,1)+LARGE(E3:AC3,2)+LARGE(E3:AC3,3))","v":0},null,null,null,null,null,null,null,null,null,null,null,null,null,null,null,null,null,null,null,null,null,null,0,0,0]
[null,null,null,0,null,null,null,null,null,null,null,null,null,null,null,null,null,null,null,null,null,null,null,null,null,null,0,0,0]
[null,null,null,0,null,null,null,null,null,null,null,null,null,null,null,null,null,null,null,null,null,null,null,null,null,null,0,0,0]
[null,null,null,0,null,null,null,null,null,null,null,null,null,null,null,null,null,null,null,null,null,null,null,null,null,null,0,0,0]
[null,null,null,0,null,null,null,null,null,null,null,null,null,null,null,null,null,null,null,null,null,null,null,null,null,null,0,0,0]
[null,null,null,0,null,null,null,null,null,null,null,null,null,null,null,null,null,null,null,null,null,null,null,null,null,null,0,0,0]
[null,null,null,0,null,null,null,null,null,null,null,null,null,null,null,null,null,null,null,null,null,null,null,null,null,null,0,0,0]
[null,null,null,0,null,null,null,null,null,null,null,null,null,null,null,null,null,null,null,null,null,null,null,null,null,null,0,0,0]
[null,null,null,0,null,null,null,null,null,null,null,null,null,null,null,null,null,null,null,null,null,null,null,null,null,null,0,0,0]
[null,null,null,0,null,null,null,null,null,null,null,null,null,null,null,null,null,null,null,null,null,null,null,null,null,null,0,0,0]
[null,null,null,0,null,null,null,null,null,null,null,null,null,null,null,null,null,null,null,null,null,null,null,null,null,null,0,0,0]
[null,null,null,0,null,null,null,null,null,null,null,null,null,null,null,null,null,null,null,null,null,null,null,null,null,null,0,0,0]
[null,null,null,0,null,null,null,null,null,null,null,null,null,null,null,null,null,null,null,null,null,null,null,null,null,null,0,0,0]
[null,null,null,0,null,null,null,null,null,null,null,null,null,null,null,null,null,null,null,null,null,null,null,null,null,null,0,0,0]
[null,null,null,0,null,null,null,null,null,null,null,null,null,null,null,null,null,null,null,null,null,null,null,null,null,null,0,0,0]
[null,null,null,0,null,null,null,null,null,null,null,null,null,null,null,null,null,null,null,null,null,null,null,null,null,null,0,0,0]
[null,null,null,0,null,null,null,null,null,null,null,null,null,null,null,null,null,null,null,null,null,null,null,null,null,null,0,0,0]
[null,null,null,0,null,null,null,null,null,null,null,null,null,null,null,null,null,null,null,null,null,null,null,null,null,null,0,0,0]
[null,null,null,0,null,null,null,null,null,null,null,null,null,null,null,null,null,null,null,null,null,null,null,null,null,null,0,0,0]
[null,null,null,0,null,null,null,null,null,null,null,null,null,null,null,null,null,null,null,null,null,null,null,null,null,null,0,0,0]
[null,null,null,0,null,null,null,null,null,null,null,null,null,null,null,null,null,null,null,null,null,null,null,null,null,null,0,0,0]
[null,null,null,0,null,null,null,null,null,null,null,null,null,null,null,null,null,null,null,null,null,null,null,null,null,null,0,0,0]
[null,null,null,0,null,null,null,null,null,null,null,null,null,null,null,null,null,null,null,null,null,null,null,null,null,null,0,0,0]
[null,null,null,0,null,null,null,null,null,null,null,null,null,null,null,null,null,null,null,null,null,null,null,null,null,null,0,0,0]
[null,null,null,0,null,null,null,null,null,null,null,null,null,null,null,null,null,null,null,null,null,null,null,null,null,null,0,0,0]
[null,null,null,0,null,null,null,null,null,null,null,null,null,null,null,null,null,null,null,null,null,null,null,null,null,null,0,0,0]
[null,null,null,0,null,null,null,null,null,null,null,null,null,null,null,null,null,null,null,null,null,null,null,null,null,null,0,0,0]
[null,null,null,0,null,null,null,null,null,null,null,null,null,null,null,null,null,null,null,null,null,null,null,null,null,null,0,0,0]
[null,null,null,0,null,null,null,null,null,null,null,null,null,null,null,null,null,null,null,null,null,null,null,null,null,null,0,0,0]
[null,null,null,0,null,null,null,null,null,null,null,null,null,null,null,null,null,null,null,null,null,null,null,null,null,null,0,0,0]
[null,null,null,0,null,null,null,null,null,null,null,null,null,null,null,null,null,null,null,null,null,null,null,null,null,null,0,0,0]
[null,null,null,0,null,null,null,null,null,null,null,null,null,null,null,null,null,null,null,null,null,null,null,null,null,null,0,0,0]
[null,null,null,{"$f":"SUM(LARGE(E35:AC35,1)+LARGE(E35:AC35,2)+LARGE(E35:AC35,3))","v":0},null,null,null,null,null,null,null,null,null,null,null,null,null,null,null,null,null,null,null,null,null,null,0,0,0]
[null,null,null,0,null,null,null,null,null,null,null,null,null,null,null,null,null,null,null,null,null,null,null,null,null,null,0,0,0]
[null,null,null,0,null,null,null,null,null,null,null,null,null,null,null,null,null,null,null,null,null,null,null,null,null,null,0,0,0]
[null,null,null,0,null,null,null,null,null,null,null,null,null,null,null,null,null,null,null,null,null,null,null,null,null,null,0,0,0]
[null,null,null,0,null,null,null,null,null,null,null,null,null,null,null,null,null,null,null,null,null,null,null,null,null,null,0,0,0]
[null,null,null,0,null,null,null,null,null,null,null,null,null,null,null,null,null,null,null,null,null,null,null,null,null,null,0,0,0]
[null,null,null,0,null,null,null,null,null,null,null,null,null,null,null,null,null,null,null,null,null,null,null,null,null,null,0,0,0]
[null,null,null,0,null,null,null,null,null,null,null,null,null,null,null,null,null,null,null,null,null,null,null,null,null,null,0,0,0]
[null,null,null,0,null,null,null,null,null,null,null,null,null,null,null,null,null,null,null,null,null,null,null,null,null,null,0,0,0]
[null,null,null,0,null,null,null,null,null,null,null,null,null,null,null,null,null,null,null,null,null,null,null,null,null,null,0,0,0]
[null,null,null,0,null,null,null,null,null,null,null,null,null,null,null,null,null,null,null,null,null,null,null,null,null,null,0,0,0]
[null,null,null,0,null,null,null,null,null,null,null,null,null,null,null,null,null,null,null,null,null,null,null,null,null,null,0,0,0]
[null,null,null,0,null,null,null,null,null,null,null,null,null,null,null,null,null,null,null,null,null,null,null,null,null,null,0,0,0]
[null,null,null,0,null,null,null,null,null,null,null,null,null,null,null,null,null,null,null,null,null,null,null,null,null,null,0,0,0]
[null,null,null,0,null,null,null,null,null,null,null,null,null,null,null,null,null,null,null,null,null,null,null,null,null,null,0,0,0]
[null,null,null,0,null,null,null,null,null,null,null,null,null,null,null,null,null,null,null,null,null,null,null,null,null,null,0,0,0]
[null,null,null,0,null,null,null,null,null,null,null,null,null,null,null,null,null,null,null,null,null,null,null,null,null,null,0,0,0]
[null,null,null,0,null,null,null,null,null,null,null,null,null,null,null,null,null,null,null,null,null,null,null,null,null,null,0,0,0]
[null,null,null,0,null,null,null,null,null,null,null,null,null,null,null,null,null,null,null,null,null,null,null,null,null,null,0,0,0]
[null,null,null,0,null,null,null,null,null,null,null,null,null,null,null,null,null,null,null,null,null,null,null,null,null,null,0,0,0]
[null,null,null,0,null,null,null,null,null,null,null,null,null,null,null,null,null,null,null,null,null,null,null,null,null,null,0,0,0]
[null,null,null,0,null,null,null,null,null,null,null,null,null,null,null,null,null,null,null,null,null,null,null,null,null,null,0,0,0]
[null,null,null,0,null,null,null,null,null,null,null,null,null,null,null,null,null,null,null,null,null,null,null,null,null,null,0,0,0]
[null,null,null,0,null,null,null,null,null,null,null,null,null,null,null,null,null,null,null,null,null,null,null,null,null,null,0,0,0]
[null,null,null,0,null,null,null,null,null,null,null,null,null,null,null,null,null,null,null,null,null,null,null,null,null,null,0,0,0]
[null,null,null,0,null,null,null,null,null,null,null,null,null,null,null,null,null,null,null,null,null,null,null,null,null,null,0,0,0]
[null,null,null,0,null,null,null,null,null,null,null,null,null,null,null,null,null,null,null,null,null,null,null,null,null,null,0,0,0]
[null,null,null,0,null,null,null,null,null,null,null,null,null,null,null,null,null,null,null,null,null,null,null,null,null,null,0,0,0]
[null,null,null,0,null,null,null,null,null,null,null,null,null,null,null,null,null,null,null,null,null,null,null,null,null,null,0,0,0]
[null,null,null,0,null,null,null,null,null,null,null,null,null,null,null,null,null,null,null,null,null,null,null,null,null,null,0,0,0]
[null,null,null,0,null,null,null,null,null,null,null,null,null,null,null,null,null,null,null,null,null,null,null,null,null,null,0,0,0]
[null,null,null,0,null,null,null,null,null,null,null,null,null,null,null,null,null,null,null,null,null,null,null,null,null,null,0,0,0]
[null,null,null,{"$f":"SUM(LARGE(E67:AC67,1)+LARGE(E67:AC67,2)+LARGE(E67:AC67,3))","v":0},null,null,null,null,null,null,null,null,null,null,null,null,null,null,null,null,null,null,null,null,null,null,0,0,0]
[null,null,null,0,null,null,null,null,null,null,null,null,null,null,null,null,null,null,null,null,null,null,null,null,null,null,0,0,0]
[null,null,null,0,null,null,null,null,null,null,null,null,null,null,null,null,null,null,null,null,null,null,null,null,null,null,0,0,0]
[null,null,null,0,null,null,null,null,null,null,null,null,null,null,null,null,null,null,null,null,null,null,null,null,null,null,0,0,0]
[null,null,null,0,null,null,null,null,null,null,null,null,null,null,null,null,null,null,null,null,null,null,null,null,null,null,0,0,0]
[null,null,null,0,null,null,null,null,null,null,null,null,null,null,null,null,null,null,null,null,null,null,null,null,null,null,0,0,0]
[null,null,null,0,null,null,null,null,null,null,null,null,null,null,null,null,null,null,null,null,null,null,null,null,null,null,0,0,0]
[null,null,null,0,null,null,null,null,null,null,null,null,null,null,null,null,null,null,null,null,null,null,null,null,null,null,0,0,0]
[null,null,null,0,null,null,null,null,null,null,null,null,null,null,null,null,null,null,null,null,null,null,null,null,null,null,0,0,0]
[null,null,null,0,null,null,null,null,null,null,null,null,null,null,null,null,null,null,null,null,null,null,null,null,null,null,0,0,0]
[null,null,null,0,null,null,null,null,null,null,null,null,null,null,null,null,null,null,null,null,null,null,null,null,null,null,0,0,0]
[null,null,null,0,null,null,null,null,null,null,null,null,null,null,null,null,null,null,null,null,null,null,null,null,null,null,0,0,0]
[null,null,null,0,null,null,null,null,null,null,null,null,null,null,null,null,null,null,null,null,null,null,null,null,null,null,0,0,0]
[null,null,null,0,null,null,null,null,null,null,null,null,null,null,null,null,null,null,null,null,null,null,null,null,null,null,0,0,0]
[null,null,null,0,null,null,null,null,null,null,null,null,null,null,null,null,null,null,null,null,null,null,null,null,null,null,0,0,0]
[null,null,null,0,null,null,null,null,null,null,null,null,null,null,null,null,null,null,null,null,null,null,null,null,null,null,0,0,0]
[null,null,null,0,null,null,null,null,null,null,null,null,null,null,null,null,null,null,null,null,null,null,null,null,null,null,0,0,0]
[null,null,null,0,null,null,null,null,null,null,null,null,null,null,null,null,null,null,null,null,null,null,null,null,null,null,0,0,0]

{"sheet":"3","index":8,"n_rows":41,"n_cols":23,"rows_kept":41,"cut":false,"hidden":false,"merged":[]}
[null,"Počet postupujících",24,{"$f":"LARGE(D3:D41,C1)","v":0}]
[null,null,null,"Ʃ best 3"]
[null,null,null,{"$f":"SUM(LARGE(E3:W3,1)+LARGE(E3:W3,2)+LARGE(E3:W3,3))","v":0},null,null,null,null,null,null,null,null,null,null,null,null,null,null,null,null,0,0,0]
[null,null,null,0,null,null,null,null,null,null,null,null,null,null,null,null,null,null,null,null,0,0,0]
[null,null,null,0,null,null,null,null,null,null,null,null,null,null,null,null,null,null,null,null,0,0,0]
[null,null,null,0,null,null,null,null,null,null,null,null,null,null,null,null,null,null,null,null,0,0,0]
[null,null,null,0,null,null,null,null,null,null,null,null,null,null,null,null,null,null,null,null,0,0,0]
[null,null,null,0,null,null,null,null,null,null,null,null,null,null,null,null,null,null,null,null,0,0,0]
[null,null,null,0,null,null,null,null,null,null,null,null,null,null,null,null,null,null,null,null,0,0,0]
[null,null,null,0,null,null,null,null,null,null,null,null,null,null,null,null,null,null,null,null,0,0,0]
[null,null,null,0,null,null,null,null,null,null,null,null,null,null,null,null,null,null,null,null,0,0,0]
[null,null,null,0,null,null,null,null,null,null,null,null,null,null,null,null,null,null,null,null,0,0,0]
[null,null,null,0,null,null,null,null,null,null,null,null,null,null,null,null,null,null,null,null,0,0,0]
[null,null,null,0,null,null,null,null,null,null,null,null,null,null,null,null,null,null,null,null,0,0,0]
[null,null,null,0,null,null,null,null,null,null,null,null,null,null,null,null,null,null,null,null,0,0,0]
[null,null,null,0,null,null,null,null,null,null,null,null,null,null,null,null,null,null,null,null,0,0,0]
[null,null,null,0,null,null,null,null,null,null,null,null,null,null,null,null,null,null,null,null,0,0,0]
[null,null,null,0,null,null,null,null,null,null,null,null,null,null,null,null,null,null,null,null,0,0,0]
[null,null,null,0,null,null,null,null,null,null,null,null,null,null,null,null,null,null,null,null,0,0,0]
[null,null,null,0,null,null,null,null,null,null,null,null,null,null,null,null,null,null,null,null,0,0,0]
[null,null,null,0,null,null,null,null,null,null,null,null,null,null,null,null,null,null,null,null,0,0,0]
[null,null,null,0,null,null,null,null,null,null,null,null,null,null,null,null,null,null,null,null,0,0,0]
[null,null,null,0,null,null,null,null,null,null,null,null,null,null,null,null,null,null,null,null,0,0,0]
[null,null,null,0,null,null,null,null,null,null,null,null,null,null,null,null,null,null,null,null,0,0,0]
[null,null,null,0,null,null,null,null,null,null,null,null,null,null,null,null,null,null,null,null,0,0,0]
[null,null,null,0,null,null,null,null,null,null,null,null,null,null,null,null,null,null,null,null,0,0,0]
[null,null,null,0,null,null,null,null,null,null,null,null,null,null,null,null,null,null,null,null,0,0,0]
[null,null,null,0,null,null,null,null,null,null,null,null,null,null,null,null,null,null,null,null,0,0,0]
[null,null,null,0,null,null,null,null,null,null,null,null,null,null,null,null,null,null,null,null,0,0,0]
[null,null,null,0,null,null,null,null,null,null,null,null,null,null,null,null,null,null,null,null,0,0,0]
[null,null,null,0,null,null,null,null,null,null,null,null,null,null,null,null,null,null,null,null,0,0,0]
[null,null,null,0,null,null,null,null,null,null,null,null,null,null,null,null,null,null,null,null,0,0,0]
[null,null,null,0,null,null,null,null,null,null,null,null,null,null,null,null,null,null,null,null,0,0,0]
[null,null,null,0,null,null,null,null,null,null,null,null,null,null,null,null,null,null,null,null,0,0,0]
[null,null,null,0,null,null,null,null,null,null,null,null,null,null,null,null,null,null,null,null,0,0,0]
[null,null,null,0,null,null,null,null,null,null,null,null,null,null,null,null,null,null,null,null,0,0,0]
[null,null,null,0,null,null,null,null,null,null,null,null,null,null,null,null,null,null,null,null,0,0,0]
[null,null,null,0,null,null,null,null,null,null,null,null,null,null,null,null,null,null,null,null,0,0,0]
[null,null,null,0,null,null,null,null,null,null,null,null,null,null,null,null,null,null,null,null,0,0,0]
[null,null,null,0,null,null,null,null,null,null,null,null,null,null,null,null,null,null,null,null,0,0,0]
[null,null,null,0,null,null,null,null,null,null,null,null,null,null,null,null,null,null,null,null,0,0,0]

{"sheet":"4","index":9,"n_rows":121,"n_cols":33,"rows_kept":121,"cut":false,"hidden":false,"merged":[[1,1,1,2]]}
[null,"Počet postupujících",24,{"$f":"LARGE(D3:D121,C1)","v":0}]
[null,"Seřazení od nejlepšího: CTRL+S",null,"Ʃ best 3"]
[null,null,null,{"$f":"SUM(LARGE(E3:AG3,1)+LARGE(E3:AG3,2)+LARGE(E3:AG3,3))","v":0},null,null,null,null,null,null,null,null,null,null,null,null,null,null,null,null,null,null,null,null,null,null,null,null,null,null,0,0,0]
[null,null,null,0,null,null,null,null,null,null,null,null,null,null,null,null,null,null,null,null,null,null,null,null,null,null,null,null,null,null,0,0,0]
[null,null,null,0,null,null,null,null,null,null,null,null,null,null,null,null,null,null,null,null,null,null,null,null,null,null,null,null,null,null,0,0,0]
[null,null,null,0,null,null,null,null,null,null,null,null,null,null,null,null,null,null,null,null,null,null,null,null,null,null,null,null,null,null,0,0,0]
[null,null,null,0,null,null,null,null,null,null,null,null,null,null,null,null,null,null,null,null,null,null,null,null,null,null,null,null,null,null,0,0,0]
[null,null,null,0,null,null,null,null,null,null,null,null,null,null,null,null,null,null,null,null,null,null,null,null,null,null,null,null,null,null,0,0,0]
[null,null,null,0,null,null,null,null,null,null,null,null,null,null,null,null,null,null,null,null,null,null,null,null,null,null,null,null,null,null,0,0,0]
[null,null,null,0,null,null,null,null,null,null,null,null,null,null,null,null,null,null,null,null,null,null,null,null,null,null,null,null,null,null,0,0,0]
[null,null,null,0,null,null,null,null,null,null,null,null,null,null,null,null,null,null,null,null,null,null,null,null,null,null,null,null,null,null,0,0,0]
[null,null,null,0,null,null,null,null,null,null,null,null,null,null,null,null,null,null,null,null,null,null,null,null,null,null,null,null,null,null,0,0,0]
[null,null,null,0,null,null,null,null,null,null,null,null,null,null,null,null,null,null,null,null,null,null,null,null,null,null,null,null,null,null,0,0,0]
[null,null,null,0,null,null,null,null,null,null,null,null,null,null,null,null,null,null,null,null,null,null,null,null,null,null,null,null,null,null,0,0,0]
[null,null,null,0,null,null,null,null,null,null,null,null,null,null,null,null,null,null,null,null,null,null,null,null,null,null,null,null,null,null,0,0,0]
[null,null,null,0,null,null,null,null,null,null,null,null,null,null,null,null,null,null,null,null,null,null,null,null,null,null,null,null,null,null,0,0,0]
[null,null,null,0,null,null,null,null,null,null,null,null,null,null,null,null,null,null,null,null,null,null,null,null,null,null,null,null,null,null,0,0,0]
[null,null,null,0,null,null,null,null,null,null,null,null,null,null,null,null,null,null,null,null,null,null,null,null,null,null,null,null,null,null,0,0,0]
[null,null,null,0,null,null,null,null,null,null,null,null,null,null,null,null,null,null,null,null,null,null,null,null,null,null,null,null,null,null,0,0,0]
[null,null,null,0,null,null,null,null,null,null,null,null,null,null,null,null,null,null,null,null,null,null,null,null,null,null,null,null,null,null,0,0,0]
[null,null,null,0,null,null,null,null,null,null,null,null,null,null,null,null,null,null,null,null,null,null,null,null,null,null,null,null,null,null,0,0,0]
[null,null,null,0,null,null,null,null,null,null,null,null,null,null,null,null,null,null,null,null,null,null,null,null,null,null,null,null,null,null,0,0,0]
[null,null,null,0,null,null,null,null,null,null,null,null,null,null,null,null,null,null,null,null,null,null,null,null,null,null,null,null,null,null,0,0,0]
[null,null,null,0,null,null,null,null,null,null,null,null,null,null,null,null,null,null,null,null,null,null,null,null,null,null,null,null,null,null,0,0,0]
[null,null,null,0,null,null,null,null,null,null,null,null,null,null,null,null,null,null,null,null,null,null,null,null,null,null,null,null,null,null,0,0,0]
[null,null,null,0,null,null,null,null,null,null,null,null,null,null,null,null,null,null,null,null,null,null,null,null,null,null,null,null,null,null,0,0,0]
[null,null,null,0,null,null,null,null,null,null,null,null,null,null,null,null,null,null,null,null,null,null,null,null,null,null,null,null,null,null,0,0,0]
[null,null,null,0,null,null,null,null,null,null,null,null,null,null,null,null,null,null,null,null,null,null,null,null,null,null,null,null,null,null,0,0,0]
[null,null,null,0,null,null,null,null,null,null,null,null,null,null,null,null,null,null,null,null,null,null,null,null,null,null,null,null,null,null,0,0,0]
[null,null,null,0,null,null,null,null,null,null,null,null,null,null,null,null,null,null,null,null,null,null,null,null,null,null,null,null,null,null,0,0,0]
[null,null,null,0,null,null,null,null,null,null,null,null,null,null,null,null,null,null,null,null,null,null,null,null,null,null,null,null,null,null,0,0,0]
[null,null,null,0,null,null,null,null,null,null,null,null,null,null,null,null,null,null,null,null,null,null,null,null,null,null,null,null,null,null,0,0,0]
[null,null,null,0,null,null,null,null,null,null,null,null,null,null,null,null,null,null,null,null,null,null,null,null,null,null,null,null,null,null,0,0,0]
[null,null,null,0,null,null,null,null,null,null,null,null,null,null,null,null,null,null,null,null,null,null,null,null,null,null,null,null,null,null,0,0,0]
[null,null,null,{"$f":"SUM(LARGE(E35:AG35,1)+LARGE(E35:AG35,2)+LARGE(E35:AG35,3))","v":0},null,null,null,null,null,null,null,null,null,null,null,null,null,null,null,null,null,null,null,null,null,null,null,null,null,null,0,0,0]
[null,null,null,0,null,null,null,null,null,null,null,null,null,null,null,null,null,null,null,null,null,null,null,null,null,null,null,null,null,null,0,0,0]
[null,null,null,0,null,null,null,null,null,null,null,null,null,null,null,null,null,null,null,null,null,null,null,null,null,null,null,null,null,null,0,0,0]
[null,null,null,0,null,null,null,null,null,null,null,null,null,null,null,null,null,null,null,null,null,null,null,null,null,null,null,null,null,null,0,0,0]
[null,null,null,0,null,null,null,null,null,null,null,null,null,null,null,null,null,null,null,null,null,null,null,null,null,null,null,null,null,null,0,0,0]
[null,null,null,0,null,null,null,null,null,null,null,null,null,null,null,null,null,null,null,null,null,null,null,null,null,null,null,null,null,null,0,0,0]
[null,null,null,0,null,null,null,null,null,null,null,null,null,null,null,null,null,null,null,null,null,null,null,null,null,null,null,null,null,null,0,0,0]
[null,null,null,0,null,null,null,null,null,null,null,null,null,null,null,null,null,null,null,null,null,null,null,null,null,null,null,null,null,null,0,0,0]
[null,null,null,0,null,null,null,null,null,null,null,null,null,null,null,null,null,null,null,null,null,null,null,null,null,null,null,null,null,null,0,0,0]
[null,null,null,0,null,null,null,null,null,null,null,null,null,null,null,null,null,null,null,null,null,null,null,null,null,null,null,null,null,null,0,0,0]
[null,null,null,0,null,null,null,null,null,null,null,null,null,null,null,null,null,null,null,null,null,null,null,null,null,null,null,null,null,null,0,0,0]
[null,null,null,0,null,null,null,null,null,null,null,null,null,null,null,null,null,null,null,null,null,null,null,null,null,null,null,null,null,null,0,0,0]
[null,null,null,0,null,null,null,null,null,null,null,null,null,null,null,null,null,null,null,null,null,null,null,null,null,null,null,null,null,null,0,0,0]
[null,null,null,0,null,null,null,null,null,null,null,null,null,null,null,null,null,null,null,null,null,null,null,null,null,null,null,null,null,null,0,0,0]
[null,null,null,0,null,null,null,null,null,null,null,null,null,null,null,null,null,null,null,null,null,null,null,null,null,null,null,null,null,null,0,0,0]
[null,null,null,0,null,null,null,null,null,null,null,null,null,null,null,null,null,null,null,null,null,null,null,null,null,null,null,null,null,null,0,0,0]
[null,null,null,0,null,null,null,null,null,null,null,null,null,null,null,null,null,null,null,null,null,null,null,null,null,null,null,null,null,null,0,0,0]
[null,null,null,0,null,null,null,null,null,null,null,null,null,null,null,null,null,null,null,null,null,null,null,null,null,null,null,null,null,null,0,0,0]
[null,null,null,0,null,null,null,null,null,null,null,null,null,null,null,null,null,null,null,null,null,null,null,null,null,null,null,null,null,null,0,0,0]
[null,null,null,0,null,null,null,null,null,null,null,null,null,null,null,null,null,null,null,null,null,null,null,null,null,null,null,null,null,null,0,0,0]
[null,null,null,0,null,null,null,null,null,null,null,null,null,null,null,null,null,null,null,null,null,null,null,null,null,null,null,null,null,null,0,0,0]
[null,null,null,0,null,null,null,null,null,null,null,null,null,null,null,null,null,null,null,null,null,null,null,null,null,null,null,null,null,null,0,0,0]
[null,null,null,0,null,null,null,null,null,null,null,null,null,null,null,null,null,null,null,null,null,null,null,null,null,null,null,null,null,null,0,0,0]
[null,null,null,0,null,null,null,null,null,null,null,null,null,null,null,null,null,null,null,null,null,null,null,null,null,null,null,null,null,null,0,0,0]
[null,null,null,0,null,null,null,null,null,null,null,null,null,null,null,null,null,null,null,null,null,null,null,null,null,null,null,null,null,null,0,0,0]
[null,null,null,0,null,null,null,null,null,null,null,null,null,null,null,null,null,null,null,null,null,null,null,null,null,null,null,null,null,null,0,0,0]
[null,null,null,0,null,null,null,null,null,null,null,null,null,null,null,null,null,null,null,null,null,null,null,null,null,null,null,null,null,null,0,0,0]
[null,null,null,0,null,null,null,null,null,null,null,null,null,null,null,null,null,null,null,null,null,null,null,null,null,null,null,null,null,null,0,0,0]
[null,null,null,0,null,null,null,null,null,null,null,null,null,null,null,null,null,null,null,null,null,null,null,null,null,null,null,null,null,null,0,0,0]
[null,null,null,0,null,null,null,null,null,null,null,null,null,null,null,null,null,null,null,null,null,null,null,null,null,null,null,null,null,null,0,0,0]
[null,null,null,0,null,null,null,null,null,null,null,null,null,null,null,null,null,null,null,null,null,null,null,null,null,null,null,null,null,null,0,0,0]
[null,null,null,0,null,null,null,null,null,null,null,null,null,null,null,null,null,null,null,null,null,null,null,null,null,null,null,null,null,null,0,0,0]
[null,null,null,{"$f":"SUM(LARGE(E67:AG67,1)+LARGE(E67:AG67,2)+LARGE(E67:AG67,3))","v":0},null,null,null,null,null,null,null,null,null,null,null,null,null,null,null,null,null,null,null,null,null,null,null,null,null,null,0,0,0]
[null,null,null,0,null,null,null,null,null,null,null,null,null,null,null,null,null,null,null,null,null,null,null,null,null,null,null,null,null,null,0,0,0]
[null,null,null,0,null,null,null,null,null,null,null,null,null,null,null,null,null,null,null,null,null,null,null,null,null,null,null,null,null,null,0,0,0]
[null,null,null,0,null,null,null,null,null,null,null,null,null,null,null,null,null,null,null,null,null,null,null,null,null,null,null,null,null,null,0,0,0]
[null,null,null,0,null,null,null,null,null,null,null,null,null,null,null,null,null,null,null,null,null,null,null,null,null,null,null,null,null,null,0,0,0]
[null,null,null,0,null,null,null,null,null,null,null,null,null,null,null,null,null,null,null,null,null,null,null,null,null,null,null,null,null,null,0,0,0]
[null,null,null,0,null,null,null,null,null,null,null,null,null,null,null,null,null,null,null,null,null,null,null,null,null,null,null,null,null,null,0,0,0]
[null,null,null,0,null,null,null,null,null,null,null,null,null,null,null,null,null,null,null,null,null,null,null,null,null,null,null,null,null,null,0,0,0]
[null,null,null,0,null,null,null,null,null,null,null,null,null,null,null,null,null,null,null,null,null,null,null,null,null,null,null,null,null,null,0,0,0]
[null,null,null,0,null,null,null,null,null,null,null,null,null,null,null,null,null,null,null,null,null,null,null,null,null,null,null,null,null,null,0,0,0]
[null,null,null,0,null,null,null,null,null,null,null,null,null,null,null,null,null,null,null,null,null,null,null,null,null,null,null,null,null,null,0,0,0]
[null,null,null,0,null,null,null,null,null,null,null,null,null,null,null,null,null,null,null,null,null,null,null,null,null,null,null,null,null,null,0,0,0]
[null,null,null,0,null,null,null,null,null,null,null,null,null,null,null,null,null,null,null,null,null,null,null,null,null,null,null,null,null,null,0,0,0]
[null,null,null,0,null,null,null,null,null,null,null,null,null,null,null,null,null,null,null,null,null,null,null,null,null,null,null,null,null,null,0,0,0]
[null,null,null,0,null,null,null,null,null,null,null,null,null,null,null,null,null,null,null,null,null,null,null,null,null,null,null,null,null,null,0,0,0]
[null,null,null,0,null,null,null,null,null,null,null,null,null,null,null,null,null,null,null,null,null,null,null,null,null,null,null,null,null,null,0,0,0]
[null,null,null,0,null,null,null,null,null,null,null,null,null,null,null,null,null,null,null,null,null,null,null,null,null,null,null,null,null,null,0,0,0]
[null,null,null,0,null,null,null,null,null,null,null,null,null,null,null,null,null,null,null,null,null,null,null,null,null,null,null,null,null,null,0,0,0]
[null,null,null,0,null,null,null,null,null,null,null,null,null,null,null,null,null,null,null,null,null,null,null,null,null,null,null,null,null,null,0,0,0]
[null,null,null,0,null,null,null,null,null,null,null,null,null,null,null,null,null,null,null,null,null,null,null,null,null,null,null,null,null,null,0,0,0]
[null,null,null,0,null,null,null,null,null,null,null,null,null,null,null,null,null,null,null,null,null,null,null,null,null,null,null,null,null,null,0,0,0]
[null,null,null,0,null,null,null,null,null,null,null,null,null,null,null,null,null,null,null,null,null,null,null,null,null,null,null,null,null,null,0,0,0]
[null,null,null,0,null,null,null,null,null,null,null,null,null,null,null,null,null,null,null,null,null,null,null,null,null,null,null,null,null,null,0,0,0]
[null,null,null,0,null,null,null,null,null,null,null,null,null,null,null,null,null,null,null,null,null,null,null,null,null,null,null,null,null,null,0,0,0]
[null,null,null,0,null,null,null,null,null,null,null,null,null,null,null,null,null,null,null,null,null,null,null,null,null,null,null,null,null,null,0,0,0]
[null,null,null,0,null,null,null,null,null,null,null,null,null,null,null,null,null,null,null,null,null,null,null,null,null,null,null,null,null,null,0,0,0]
[null,null,null,0,null,null,null,null,null,null,null,null,null,null,null,null,null,null,null,null,null,null,null,null,null,null,null,null,null,null,0,0,0]
[null,null,null,0,null,null,null,null,null,null,null,null,null,null,null,null,null,null,null,null,null,null,null,null,null,null,null,null,null,null,0,0,0]
[null,null,null,0,null,null,null,null,null,null,null,null,null,null,null,null,null,null,null,null,null,null,null,null,null,null,null,null,null,null,0,0,0]
[null,null,null,0,null,null,null,null,null,null,null,null,null,null,null,null,null,null,null,null,null,null,null,null,null,null,null,null,null,null,0,0,0]
[null,null,null,0,null,null,null,null,null,null,null,null,null,null,null,null,null,null,null,null,null,null,null,null,null,null,null,null,null,null,0,0,0]
[null,null,null,0,null,null,null,null,null,null,null,null,null,null,null,null,null,null,null,null,null,null,null,null,null,null,null,null,null,null,0,0,0]
[null,null,null,{"$f":"SUM(LARGE(E99:AG99,1)+LARGE(E99:AG99,2)+LARGE(E99:AG99,3))","v":0},null,null,null,null,null,null,null,null,null,null,null,null,null,null,null,null,null,null,null,null,null,null,null,null,null,null,0,0,0]
[null,null,null,0,null,null,null,null,null,null,null,null,null,null,null,null,null,null,null,null,null,null,null,null,null,null,null,null,null,null,0,0,0]
[null,null,null,0,null,null,null,null,null,null,null,null,null,null,null,null,null,null,null,null,null,null,null,null,null,null,null,null,null,null,0,0,0]
[null,null,null,0,null,null,null,null,null,null,null,null,null,null,null,null,null,null,null,null,null,null,null,null,null,null,null,null,null,null,0,0,0]
[null,null,null,0,null,null,null,null,null,null,null,null,null,null,null,null,null,null,null,null,null,null,null,null,null,null,null,null,null,null,0,0,0]
[null,null,null,0,null,null,null,null,null,null,null,null,null,null,null,null,null,null,null,null,null,null,null,null,null,null,null,null,null,null,0,0,0]
[null,null,null,0,null,null,null,null,null,null,null,null,null,null,null,null,null,null,null,null,null,null,null,null,null,null,null,null,null,null,0,0,0]
[null,null,null,0,null,null,null,null,null,null,null,null,null,null,null,null,null,null,null,null,null,null,null,null,null,null,null,null,null,null,0,0,0]
[null,null,null,0,null,null,null,null,null,null,null,null,null,null,null,null,null,null,null,null,null,null,null,null,null,null,null,null,null,null,0,0,0]
[null,null,null,0,null,null,null,null,null,null,null,null,null,null,null,null,null,null,null,null,null,null,null,null,null,null,null,null,null,null,0,0,0]
[null,null,null,0,null,null,null,null,null,null,null,null,null,null,null,null,null,null,null,null,null,null,null,null,null,null,null,null,null,null,0,0,0]
[null,null,null,0,null,null,null,null,null,null,null,null,null,null,null,null,null,null,null,null,null,null,null,null,null,null,null,null,null,null,0,0,0]
[null,null,null,0,null,null,null,null,null,null,null,null,null,null,null,null,null,null,null,null,null,null,null,null,null,null,null,null,null,null,0,0,0]
[null,null,null,0,null,null,null,null,null,null,null,null,null,null,null,null,null,null,null,null,null,null,null,null,null,null,null,null,null,null,0,0,0]
[null,null,null,0,null,null,null,null,null,null,null,null,null,null,null,null,null,null,null,null,null,null,null,null,null,null,null,null,null,null,0,0,0]
[null,null,null,0,null,null,null,null,null,null,null,null,null,null,null,null,null,null,null,null,null,null,null,null,null,null,null,null,null,null,0,0,0]
[null,null,null,0,null,null,null,null,null,null,null,null,null,null,null,null,null,null,null,null,null,null,null,null,null,null,null,null,null,null,0,0,0]
[null,null,null,0,null,null,null,null,null,null,null,null,null,null,null,null,null,null,null,null,null,null,null,null,null,null,null,null,null,null,0,0,0]
[null,null,null,0,null,null,null,null,null,null,null,null,null,null,null,null,null,null,null,null,null,null,null,null,null,null,null,null,null,null,0,0,0]
[null,null,null,0,null,null,null,null,null,null,null,null,null,null,null,null,null,null,null,null,null,null,null,null,null,null,null,null,null,null,0,0,0]
[null,null,null,0,null,null,null,null,null,null,null,null,null,null,null,null,null,null,null,null,null,null,null,null,null,null,null,null,null,null,0,0,0]
[null,null,null,0,null,null,null,null,null,null,null,null,null,null,null,null,null,null,null,null,null,null,null,null,null,null,null,null,null,null,0,0,0]
[null,null,null,0,null,null,null,null,null,null,null,null,null,null,null,null,null,null,null,null,null,null,null,null,null,null,null,null,null,null,0,0,0]